Cogmind - Beta 9.4 @@@ ROGUE MODE // 2020.01.29 @ 18:59:58 Player: Pimski Result: Escaped! Performance ------------- Evolutions (9) 4500 Regions Visited (34) 6800 Robots Destroyed (322) 1610 Value Destroyed (14449) 14449 Prototype IDs (130) 2600 Alien Tech Used (10) 2000 Bonus (20525) 20525 TOTAL SCORE: 52484 Bonus ------- Triggered High Security 500 Triggered Max Security 1000 High Alert Combat Kills 9739 Follower Combat Kills 192 Aligned with FarCom 300 Met Data Miner 300 Met Imprinter 300 Destroyed Z-Imprinter 1000 Met Zhirov 300 Met Warlord at Base 500 MAIN.C Attacked Warlord 500 Met Warlord at Research 2000 Scanned by Researcher 500 Met Sigix 2000 Activated Exoskeleton 3000 Win 3000 Friendly Fire -4606 Cogmind --------- Core Integrity 1198/1600 Matter 131/425 Energy 946/950 System Corruption 11% Temperature Cool (4) Movement Flying (13) Location To Epsilon Eridani Parts ------- > --- POWER (3) -------- Quantum Reactor Vortex Chain Reactor > --- PROPULSION (6) --- Impulse Thruster Array Impulse Thruster Array Cooled Q-thruster Cooled Q-thruster > --- UTILITY (15) ----- Lightpack 2.0 Zionite Metafield Generator Spectral Analyzer Experimental Targeting Computer Experimental Targeting Computer Advanced Target Analyzer Advanced Core Analyzer Advanced Armor Integrity Analyzer Advanced Weapon Cycler Experimental Focal Shield > --- WEAPON (2) ------- Omega Cannon > --- INVENTORY (24) --- Field Propulsion Array Improved Diametric Drive Cooled Impulse Thruster Cooled Q-thruster Advanced Matter Compressor (400) Spectral Analyzer Advanced Focal Shield Experimental Force Field Helical Railgun Mini Smartbomb Launcher Field Lobotomy Kit Sigix Broadsword Peak State ------------ > --- POWER ------------ Singularity Reactor > --- PROPULSION ------- Cooled Impulse Thruster Impulse Thruster Array Impulse Thruster Array Cooled Q-thruster > --- UTILITY ---------- Lightpack 2.0 Zionite Metafield Generator Spectral Analyzer Experimental Targeting Computer Experimental Targeting Computer Advanced Core Analyzer Experimental Armor Integrity Analyzer Advanced Weapon Cycler Advanced Reaction Control System Advanced Phase Shifter Experimental Utility Shielding Experimental Focal Shield Thermal Barrier Experimental Force Field > --- WEAPON ----------- Sigix Broadsword > --- INVENTORY -------- Quantum Reactor Vortex Chain Reactor Field Propulsion Array Field Propulsion Array Improved Diametric Drive Cooled Q-thruster Cooled Q-thruster Advanced Power Amplifier Advanced Matter Compressor Spectral Analyzer Experimental Sensor Array Advanced Target Analyzer Advanced Armor Integrity Analyzer Precision Matter Filter Advanced Reaction Control System Zionite Weapon Casing 5H-AD0's Sniper Rifle Omega Cannon Mini Smartbomb Launcher Field Lobotomy Kit [Rating: 258] Favorites ----------- Power Zionite Light DM Reactor Engine Light Ion Engine Power Core Light Nuclear Core Reactor Zionite Light DM Reactor Propulsion Light Treads Treads Light Treads Leg Aluminum Leg Wheel Wheel Flight Unit Improved VTOL Module Utility Lightpack 2.0 Device Experimental Sensor Array Storage Lightpack 2.0 Processor Experimental Signal Interpreter Hackware Improved Hacking Suite Protection Experimental Utility Shielding Weapon Longsword +1 Energy Gun Medium Laser Ballistic Gun Light Assault Rifle Ballistic Cannon Omega Cannon Launcher Mini Smartbomb Launcher Special Weapon Field Lobotomy Kit Slashing Weapon Longsword +1 Piercing Weapon Lance Special Melee Weapon Dirty Datajack Build | -11 -10 -10 -10 -9 -8 -7 -7 -7 -7 -7 -6 -6 -6 -6 -6 -5 -5 -5 -5 -5 -5 -5 -4 -4 -4 -4 -4 -3 -3 -3 -2 -2 -2 -1 ------- Run | Scr Mat Min Exi Min Mat Fac Low Low Zio Dee Pro Fac Low Low Dat Pro Fac Was Fac Upp Upp War Pro Fac Upp Upp Zhi Pro Res Tes Res Qua Sec Acc Slots Evolved 18 | . . . . . 4 2 . . . . . 2 . . . . 2 . . . . . . 2 . . . . 2 . 2 . . 2 Power 2 | . . . . . . . . . . . . . . . . . . . . . . . . . . . . . 1 . . . . 1 Propulsion 4 | . . . . . . 2 . . . . . . . . . . . . . . . . . . . . . . 1 . 1 . . . Utility 12 | . . . . . 4 . . . . . . 2 . . . . 2 . . . . . . 2 . . . . . . 1 . . 1 Weapon . | . . . . . . . . . . . . . . . . . . . . . . . . . . . . . . . . . . . Parts Attached 275 | 1 . 8 1 1 21 49 . 1 2 23 3 8 1 3 4 1 12 1 7 1 1 9 2 14 1 . 6 2 6 15 10 6 12 43 Power 20 | . . 1 . . 2 7 . . . 3 . . . . . . 1 . 1 . . . . 1 . . . . 1 . . . . 3 Engine 3 | . . 1 . . 1 1 . . . . . . . . . . . . . . . . . . . . . . . . . . . . Core 7 | . . . . . 1 6 . . . . . . . . . . . . . . . . . . . . . . . . . . . . Reactor 10 | . . . . . . . . . . 3 . . . . . . 1 . 1 . . . . 1 . . . . 1 . . . . 3 Propulsion 59 | . . 2 1 1 4 20 . . . 7 . 1 . . . . 3 1 . . . 1 . 3 . . 2 . 1 5 3 . . 4 Treads 22 | . . 2 . 1 3 16 . . . . . . . . . . . . . . . . . . . . . . . . . . . . Leg . | . . . . . . . . . . . . . . . . . . . . . . . . . . . . . . . . . . . Wheel 1 | . . . 1 . . . . . . . . . . . . . . . . . . . . . . . . . . . . . . . Hover . | . . . . . . . . . . . . . . . . . . . . . . . . . . . . . . . . . . . Flight 36 | . . . . . 1 4 . . . 7 . 1 . . . . 3 1 . . . 1 . 3 . . 2 . 1 5 3 . . 4 Utility 134 | 1 . 1 . . 8 13 . . 1 11 3 7 1 3 1 1 8 . 4 1 1 7 2 6 . . 4 . 4 4 4 5 10 23 Device 61 | . . . . . 1 2 . . . 5 1 . 1 2 . 1 2 . 3 . 1 4 1 2 . . 1 . 2 1 2 4 10 15 Storage 12 | 1 . 1 . . 4 2 . . . 2 . . . . . . . . . . . 1 . . . . 1 . . . . . . . Processor 15 | . . . . . . 3 . . 1 . . 2 . . 1 . . . . . . . . 1 . . . . . . . . . 7 Hackware 16 | . . . . . . . . . . . . 5 . . . . 4 . 1 . . . . 2 . . . . 1 1 2 . . . Protection 30 | . . . . . 3 6 . . . 4 2 . . 1 . . 2 . . 1 . 2 1 1 . . 2 . 1 2 . 1 . 1 Artifact . | . . . . . . . . . . . . . . . . . . . . . . . . . . . . . . . . . . . Weapon 62 | . . 4 . . 7 9 . 1 1 2 . . . . 3 . . . 2 . . 1 . 4 1 . . 2 . 6 3 1 2 13 Energy Gun 3 | . . 2 . . 1 . . . . . . . . . . . . . . . . . . . . . . . . . . . . . Energy Cannon . | . . . . . . . . . . . . . . . . . . . . . . . . . . . . . . . . . . . Ballistic Gun 17 | . . 1 . . 4 6 . . . 1 . . . . . . . . . . . . . . . . . . . . 1 . . 4 Ballistic Cannon 4 | . . . . . . . . . . . . . . . . . . . . . . . . . . . . . . 2 . . . 2 Launcher 9 | . . 1 . . 1 2 . 1 . . . . . . . . . . . . . . . 2 . . . 1 . . . . . 1 Special Weapon 3 | . . . . . . . . . . . . . . . 1 . . . 1 . . . . . . . . . . . . . 1 . Impact Weapon . | . . . . . . . . . . . . . . . . . . . . . . . . . . . . . . . . . . . Slashing Weapon 21 | . . . . . 1 1 . . 1 1 . . . . 1 . . . 1 . . . . 1 1 . . 1 . 2 2 1 1 6 Piercing Weapon 4 | . . . . . . . . . . . . . . . . . . . . . . 1 . 1 . . . . . 2 . . . . Special Melee Weapon 1 | . . . . . . . . . . . . . . . 1 . . . . . . . . . . . . . . . . . . . Unidentified Prototypes 32 | . . . . . 1 3 . . . 9 . 1 . . . . . . 1 . . 4 1 . . . 5 . . 3 2 1 . 1 Parts Lost 28 | . . 2 . . 3 6 . . . . 1 . 1 . . . 1 . . . . . . 2 . . . . . 1 . . . 11 Power 2 | . . . . . . . . . . . . . . . . . . . . . . . . 1 . . . . . . . . . 1 Propulsion 5 | . . . . . 1 3 . . . . . . . . . . . . . . . . . . . . . . . . . . . 1 Utility 15 | . . . . . . 1 . . . . 1 . 1 . . . 1 . . . . . . 1 . . . . . 1 . . . 9 Weapon 6 | . . 2 . . 2 2 . . . . . . . . . . . . . . . . . . . . . . . . . . . . Highest Loss Streak 4 | . . 1 . . 2 3 . . . . 1 . 1 . . . 1 . . . . . . 1 . . . . . 1 . . . 4 Average Slot Usage (%) 89 | . 100 99 100 100 91 95 76 76 81 89 92 92 92 93 91 93 93 94 94 94 94 93 94 90 94 94 91 94 84 83 80 80 77 74 Engine 2 | . 14 14 14 14 5 2 . . . . . . . . . . . . . . . . . . . . . . . . . . . . Core 1 | . . . . . 3 4 7 7 7 3 . . . . . . . . . . . . . . . . . . . . . . . . Reactor 2 | . . . . . . . . . . 3 7 6 6 6 6 6 5 5 5 5 5 5 5 5 5 5 5 5 4 4 4 4 4 3 Treads 8 | . . 28 22 28 18 25 . . . . . . . . . . . . . . . . . . . . . . . . . . . . Flight 14 | . . . . . . 3 30 30 30 30 30 25 26 26 26 26 22 23 23 23 23 23 23 20 21 21 21 21 19 19 17 17 16 15 Device 8 | . . . . . 3 1 7 7 7 10 19 9 5 5 1 5 5 5 5 4 5 4 5 8 10 10 10 10 9 10 13 20 27 25 Storage 11 | . 28 28 28 28 25 21 7 7 7 5 7 6 6 6 6 6 5 5 5 5 5 5 5 5 5 5 5 5 4 4 4 4 4 3 Processor 7 | . . . . . . 10 15 15 18 14 7 6 6 6 11 6 5 5 5 5 5 5 5 7 5 5 5 5 4 4 4 4 4 18 Hackware 12 | . . . . . . . . . . . . 19 26 25 20 20 30 29 34 35 35 30 29 30 31 31 31 31 27 25 23 19 11 . Protection 4 | . . . . . 17 9 . . . 3 3 2 . 1 6 6 3 5 . . . 3 5 . 5 5 2 5 3 4 4 1 4 2 Energy Gun 2 | . 28 25 14 14 1 . . . . . . . . . . . . . . . . . . . . . . . . . . . . . Ballistic Gun 4 | . . 2 14 14 16 13 . . . . . . . . . . . . . . . . . . . . . . . . . . . 1 Slashing Weapon 4 | . . . . . . . 7 7 9 15 15 13 13 13 9 13 11 11 10 11 11 7 5 4 5 5 5 4 4 4 6 6 3 . Naked Turns . | . . . . . . . . . . . . . . . . . . . . . . . . . . . . . . . . . . . Heaviest Build 97 | 17 17 43 42 42 67 75 18 24 21 43 25 25 23 24 24 24 25 23 23 22 22 25 24 25 22 22 22 23 52 52 57 63 78 97 Greatest Support 116 | 20 20 40 40 40 40 80 24 24 24 27 26 26 26 26 26 26 26 26 26 26 26 28 28 28 28 28 31 31 56 58 79 79 111 116 Greatest Overweight (x) 4 | . . 1 4 4 1 4 . . . 1 . . . . . . . . . . . . . . . . . . . . . . . . Average Overweight (x) . | . . . 1 1 1 . . . . . . . . . . . . . . . . . . . . . . . . . . . . . Largest Inventory Capacity 36 | 8 8 14 14 14 20 36 24 24 24 24 24 24 24 24 24 24 24 24 24 24 24 24 24 24 24 24 24 24 24 24 24 24 24 24 Average Capacity 21 | 6 8 9 14 14 17 20 24 24 24 21 24 24 24 24 24 24 24 24 24 24 24 24 24 24 24 24 24 24 24 24 24 24 24 24 Most Carried 24 | 6 8 8 14 14 20 20 17 21 24 24 24 24 24 24 24 23 24 24 24 24 24 24 24 24 24 24 24 24 24 24 24 24 24 24 Average Carried 20 | 6 7 7 12 14 16 19 16 17 23 19 23 23 23 23 23 22 23 23 23 24 24 23 24 23 24 24 23 24 23 23 23 23 23 22 Final Capacity 24 | 8 8 14 14 14 20 24 24 24 24 24 24 24 24 24 24 24 24 24 24 24 24 24 24 24 24 24 24 24 24 24 24 24 24 24 Final Carried 24 | 6 8 8 14 14 20 15 17 21 24 24 23 24 24 24 23 22 24 24 24 24 24 24 24 24 24 24 24 24 22 24 24 24 21 14 Class Distribution -------------------- 29% | Wizard-Sprinter 17% | Scavenger-Mutant 16% | Mutant 12% | Generator-Sprinter 9% | Hacker-Sprinter 8% | Hauler-Sprinter Dominant Class ---------------- Mutant | -10/Materials Mutant | -10/Mines Mutant | -10/Exiles Mutant | -9/Mines Scavenger-Mutant | -8/Materials Scavenger-Mutant | -7/Factory Hauler-Sprinter | -7/Lower Caves Hauler-Sprinter | -7/Lower Caves Hauler-Sprinter | -7/Zion Hauler-Sprinter | -7/Deep Caves Hauler-Sprinter | -6/Proximity Caves Hacker-Sprinter | -6/Factory Hacker-Sprinter | -6/Lower Caves Hacker-Sprinter | -6/Lower Caves Hacker-Sprinter | -6/Data Miner Hacker-Sprinter | -5/Proximity Caves Wizard-Sprinter | -5/Factory Wizard-Sprinter | -5/Waste Wizard-Sprinter | -5/Factory Wizard-Sprinter | -5/Upper Caves Wizard-Sprinter | -5/Upper Caves Wizard-Sprinter | -5/Warlord Wizard-Sprinter | -4/Proximity Caves Wizard-Sprinter | -4/Factory Wizard-Sprinter | -4/Upper Caves Wizard-Sprinter | -4/Upper Caves Wizard-Sprinter | -4/Zhirov Wizard-Sprinter | -3/Proximity Caves Wizard-Sprinter | -3/Research Wizard-Sprinter | -3/Testing Wizard-Sprinter | -2/Research Wizard-Sprinter | -2/Quarantine Hacker-Sprinter | -2/Section 7 Generator-Sprinter | -1/Access Resources | -11 -10 -10 -10 -9 -8 -7 -7 -7 -7 -7 -6 -6 -6 -6 -6 -5 -5 -5 -5 -5 -5 -5 -4 -4 -4 -4 -4 -3 -3 -3 -2 -2 -2 -1 ----------- Run | Scr Mat Min Exi Min Mat Fac Low Low Zio Dee Pro Fac Low Low Dat Pro Fac Was Fac Upp Upp War Pro Fac Upp Upp Zhi Pro Res Tes Res Qua Sec Acc Matter Collected 8351 | 210 . 72 23 . 434 1257 80 30 39 200 . 135 . 40 . 20 132 . 73 20 20 90 30 20 140 9 80 19 100 157 503 60 337 4021 Remotely . | . . . . . . . . . . . . . . . . . . . . . . . . . . . . . . . . . . . Salvage Created 16391 | 51 . 244 . . 824 2292 . 26 . 307 . 549 . . . 20 111 . 342 . . . . 147 72 . 129 73 234 245 700 33 527 9465 Parts 707 | 2 . 17 . . 40 105 . 1 . 16 . 20 . . . . 4 . 13 . . . . 12 . . 2 5 7 12 22 4 23 402 Haulers Intercepted 38 | . . . . . 4 6 . . . . . 5 . . . . 1 . 3 . . . . 1 . . . . 2 . 4 . 3 9 Recyclers Shooed 9 | . . 1 . . . 4 . . . . . . . . . . . . . . . . . . . . . . . . . . . 4 Parts Field Recycled . | . . . . . . . . . . . . . . . . . . . . . . . . . . . . . . . . . . . Retrieved Matter . | . . . . . . . . . . . . . . . . . . . . . . . . . . . . . . . . . . . Parts Self-Destructed 6 | . . . . . . . . . . . 3 . . . . . . . . . . . . . . . 2 1 . . . . . . Prevented 32 | . . . . . . . . . . . 2 . . 1 . . . . . . . 29 . . . . . . . . . . . . Kills | -11 -10 -10 -10 -9 -8 -7 -7 -7 -7 -7 -6 -6 -6 -6 -6 -5 -5 -5 -5 -5 -5 -5 -4 -4 -4 -4 -4 -3 -3 -3 -2 -2 -2 -1 ------- Run | Scr Mat Min Exi Min Mat Fac Low Low Zio Dee Pro Fac Low Low Dat Pro Fac Was Fac Upp Upp War Pro Fac Upp Upp Zhi Pro Res Tes Res Qua Sec Acc Combat Hostiles Destroyed 200 | . . 8 . . 8 30 . 3 . 1 . . . . . . 1 . . . . . . 4 . . . 3 . . . . 6 136 Melee 8 | . . . . . . . . . . 1 . . . . . . 1 . . . . . . . . . . . . . . . 6 . Guns 111 | . . 5 . . 6 27 . . . . . . . . . . . . . . . . . . . . . . . . . . . 73 Cannons 60 | . . . . . . . . . . . . . . . . . . . . . . . . . . . . . . . . . . 60 AOE 21 | . . 3 . . 2 3 . 3 . . . . . . . . . . . . . . . 4 . . . 3 . . . . . 3 Classes Destroyed 21 | 1 . 4 . . 6 2 . . . . . . . . . . 1 . . . . . . 1 . . . . . . . . . 6 Worker 22 | . . . . . 3 8 . . . . . . . . . . . . . . . . . . . . . . . . . . . 11 Builder 12 | . . 1 . . 1 . . . . . . . . . . . . . . . . . . . . . . . . . . . . 10 Tunneler 1 | . . 1 . . . . . . . . . . . . . . . . . . . . . . . . . . . . . . . . Hauler 38 | . . . . . 4 6 . . . . . 5 . . . . 1 . 3 . . . . 1 . . . . 2 . 4 . 3 9 Recycler 16 | 1 . 1 . . 1 6 . . . . . . . . . . . . . . . . . . . . . . . 1 2 . . 4 Mechanic 4 | . . . . . . . . . . . . . . . . . . . . . . . . 1 . . . . . . . . . 3 Operator 6 | . . . . . 1 . . . . . . 1 . . . . . . . . . . . . . . . . . . 1 . . 3 Drone 4 | . . . . . . . . . . . . . . . . . 1 . . . . . . . . . . . . . . . . 3 Watcher 13 | . . . . . 2 1 . . . . . 2 . . . . . . 1 . . . . . . . . . 1 2 . 1 . 3 Swarmer 43 | . . 6 . . . 4 . 3 . . . . . . . . . . . . . . . 4 . . . 3 . . . . 5 18 Saboteur 5 | . . . . . . . . . . . . . . . . . . . . . . . . . . . . . . . . . . 5 Grunt 75 | . . 2 . . 4 19 . . . . . . . . . . . . . . . . . . . . . . . . . . 1 49 Brawler 5 | . . . . . 1 1 . . . . . . . . . . . . . . . . . . . . . . . . . . . 3 Duelist 4 | . . . . . . . . . . . . . . . . . . . . . . . . . . . . . . . . . . 4 Protector 3 | . . . . . . . . . . . . . . . . . . . . . . . . . . . . . . . . . . 3 Sentry 14 | . . . . . 3 3 . . . . . . . . . . . . . . . . . . . . . . . . . . . 8 Hunter 17 | . . . . . . 2 . . . . . . . . . . . . . . . . . . . . . . . . . . . 15 Programmer 26 | . . . . . . 1 . . . . . . . . . . . . . . . . . . . . . . . . . . . 25 Investigator 1 | . . . . . . . . . . . . . . . . . . . . . . . . . . . . . . . . . . 1 Striker 2 | . . . . . . . . . . . . . . . . . . . . . . . . . . . . . . . . . . 2 Executioner 3 | . . . . . . . . . . . . . . . . . . . . . . . . . . . . . . . . . . 3 Z-Technician 5 | . . . . . . . . . . 5 . . . . . . . . . . . . . . . . . . . . . . . . Best Kill Streak 23 | 1 . 5 . . 6 10 . 3 . 5 . 4 . . . . 1 . 3 . . . . 4 . . . 3 1 1 2 1 6 23 Combat Bots Only 18 | . . 3 . . 4 5 . 3 . 1 . . . . . . 1 . . . . . . 4 . . . 3 . . . . 6 18 Max Kills in Single Turn 4 | 1 . 3 . . 3 3 . 1 . 1 . 1 . . . 1 1 . 1 . . . . 4 . . . 3 1 1 1 1 1 3 Gunslinging . | . . . . . . . . . . . . . . . . . . . . . . . . . . . . . . . . . . . Exploded 4 | . . 2 . . 2 2 . 1 . . . . . . . . . . . . . . . 4 . . . 3 . . . . . 2 Melee 1 | . . . . . . . . . . 1 . . . . . . 1 . . . . . . . . . . . . . . . 1 . Uniques/NPCs Destroyed 3 | . . . . . . . . . . 2 . . . . . 1 . . . . . . . . . . . . . . . . . . Z-Imprinter (-7/Deep Caves) 5H-AD0 (-7/Deep Caves) Data Miner (-5/Proximity Caves) Combat | -11 -10 -10 -10 -9 -8 -7 -7 -7 -7 -7 -6 -6 -6 -6 -6 -5 -5 -5 -5 -5 -5 -5 -4 -4 -4 -4 -4 -3 -3 -3 -2 -2 -2 -1 -------- Run | Scr Mat Min Exi Min Mat Fac Low Low Zio Dee Pro Fac Low Low Dat Pro Fac Was Fac Upp Upp War Pro Fac Upp Upp Zhi Pro Res Tes Res Qua Sec Acc Damage Taken 8179 | . 20 282 30 . 528 1955 17 44 . . 91 62 38 38 . . 369 . 50 90 . 20 . 565 . . . 95 200 . 88 47 464 3086 Core 1161 | . . 24 . . 73 241 . . . . . 18 . . . . 75 . . 28 . 20 . 173 . . . . 100 . . . 7 402 Absorbed by Shields 1210 | . . . . . . 8 . . . . . . . . . . . . . . . . . . . . . . . . . . 108 1094 Core Remaining (%) 87 | 100 . . . 90 86 . . . . . 65 . . . . 97 . . . . . . 87 . . . . 80 . 92 . . 99 74 Volleys Fired 679 | 2 . 19 1 . 60 120 . 3 . . . . . . 1 . . . 1 . . . . 1 . . . 2 . . . . 2 467 Largest 2 | 2 . 2 1 . 2 2 . 1 . . . . . . 1 . . . 1 . . . . 1 . . . 1 . . . . 1 1 Hottest 100 | 100 . 100 20 . 83 56 . 36 . . . . . . . . . . . . . . . 80 . . . 80 . . . . . 100 Shots Fired 869 | 4 . 36 1 . 119 238 . 3 . . . . . . 1 . . . 1 . . . . 1 . . . 2 . . . . 2 461 Gun 619 | 4 . 34 1 . 118 236 . . . . . . . . . . . . . . . . . . . . . . . . . . . 226 Cannon 233 | . . . . . . . . . . . . . . . . . . . . . . . . . . . . . . . . . . 233 Launcher 13 | . . 2 . . 1 2 . 3 . . . . . . . . . . . . . . . 1 . . . 2 . . . . . 2 Special 4 | . . . . . . . . . . . . . . . 1 . . . 1 . . . . . . . . . . . . . 2 . Kinetic 799 | . . . 1 . 103 236 . . . . . . . . . . . . . . . . . . . . . . . . . . . 459 Thermal 53 | 4 . 34 . . 15 . . . . . . . . . . . . . . . . . . . . . . . . . . . . . Explosive 13 | . . 2 . . 1 2 . 3 . . . . . . . . . . . . . . . 1 . . . 2 . . . . . 2 Electromagnetic . | . . . . . . . . . . . . . . . . . . . . . . . . . . . . . . . . . . . Robot Hit Streak 37 | 3 . 13 2 . 17 23 . 14 . . . . . . 15 . . . 16 . . . . 17 . . . 18 . . . . 20 37 Robot Miss Streak 3 | . . 1 . . 3 3 . . . . . . . . . . . . . . . . . . . . . . . . . . . 3 Penetration Max 3 | . . . . . . 1 . . . . . . . . . . . . . . . . . . . . . . . . . . . 3 Secondary Targets . | . . . . . . . . . . . . . . . . . . . . . . . . . . . . . . . . . . . Shots Hit Robots 807 | 3 . 28 1 . 82 188 . 3 . 17 . 11 . . 2 2 4 . 16 . . . . 11 2 . 1 1 9 5 13 1 25 382 Core Hits 480 | 2 . 16 . . 40 89 . 4 . 6 . 8 . . . . 2 . 5 . . . . 6 . . 1 4 4 3 7 1 10 272 Critical Hits 68 | . . . . . 1 4 . . . . . . . . . . . . 1 . . . . 1 . . . . . . . . 8 53 Critical Kills 26 | . . . . . . 4 . . . . . . . . . . . . 1 . . . . . . . . . . . . . 4 17 Critical Parts Destroyed 37 | . . . . . 1 . . . . . . . . . . . . . . . . . . 1 . . . . . . . . 4 31 Melee Attacks 635 | . . . . . 1 11 12 2 9 42 12 28 11 11 1 2 68 . 71 1 . 7 4 47 21 5 1 13 52 47 44 24 47 41 Impact . | . . . . . . . . . . . . . . . . . . . . . . . . . . . . . . . . . . . Slashing 611 | . . . . . 1 11 12 2 9 42 12 28 11 11 . 2 68 . 71 1 . 7 4 42 17 4 1 12 47 40 44 24 47 41 Piercing 19 | . . . . . . . . . . . . . . . . . . . . . . . . 1 4 1 . 1 5 7 . . . . Entropic 4 | . . . . . . . . . . . . . . . . . . . . . . . . 4 . . . . . . . . . . Sneak Attacks 48 | . . . . . . 1 . . . 11 . 7 . . 1 2 1 . 4 . . . . 3 . . . . 4 2 5 . 4 3 Combat Hostiles 1 | . . . . . . . . . . 1 . . . . . . . . . . . . . . . . . . . . . . . . Follow-up Attacks 9 | . . . . . . . . . . 1 . 2 . . . . . . 3 . . . . 1 . . . . 2 . . . . . Damage Inflicted 56448 | 38 . 485 8 . 1199 4298 . 340 . 2246 . 1205 . . . 294 326 . 1093 . . . . 1271 259 . 123 321 740 496 1146 53 2748 37759 Guns 21894 | 38 . 309 8 . 1006 3629 . . . . . . . . . . . . . . . . . . . . . . . . . . . 16904 Cannons 19028 | . . . . . . . . . . . . . . . . . . . . . . . . . . . . . . . . . . 19028 Explosions 2491 | . . 176 . . 116 484 . 340 . . . . . . . . . . . . . . . 401 . . . 321 . . . . . 653 Melee 12940 | . . . . . . 167 . . . 2246 . 1205 . . . 294 326 . 1093 . . . . 870 259 . 123 . 740 496 1146 53 2748 1174 Ramming 95 | . . . . . 77 18 . . . . . . . . . . . . . . . . . . . . . . . . . . . . Kinetic 40365 | . . . 8 . 796 3629 . . . . . . . . . . . . . . . . . . . . . . . . . . . 35932 Thermal 628 | 38 . 309 . . 210 . . . . . . . . . . . . . . . . . . . . . . . . . . . . 71 Explosive 2399 | . . 176 . . 116 484 . 340 . . . . . . . . . . . . . . . 401 . . . 321 . . . . . 561 Electromagnetic 21 | . . . . . . . . . . . . . . . . . . . . . . . . . . . . . . . . . . 21 Impact . | . . . . . . . . . . . . . . . . . . . . . . . . . . . . . . . . . . . Slashing 12735 | . . . . . . 167 . . . 2246 . 1205 . . . 294 326 . 1093 . . . . 776 259 . 123 . 629 496 1146 53 2748 1174 Piercing 111 | . . . . . . . . . . . . . . . . . . . . . . . . . . . . . 111 . . . . . Entropic 94 | . . . . . . . . . . . . . . . . . . . . . . . . 94 . . . . . . . . . . Highest Corruption 11 | . . . . . . 2 2 2 2 . . 1 1 1 1 1 1 1 1 1 1 2 . 3 3 3 3 4 . . . 1 1 11 Average Corruption 2 | . . . . . . 1 2 2 2 . . 1 1 1 1 1 1 1 1 1 1 1 . 1 3 3 3 3 . . . 1 1 4 Corruption Purged . | . . . . . . . . . . . . . . . . . . . . . . . . . . . . . . . . . . . Effects 97 | . . . . . . 14 1 . . . . 1 1 . 1 1 . . 4 1 . . . 2 2 2 1 5 . . . . 1 60 Message Errors 25 | . . . . . . 7 1 . . . . 1 1 . . . . . 1 . . . . 2 1 1 . 1 . . . . . 9 Matter Fused 10 | . . . . . . . . . . . . . . . . . . . . . . . . . . 1 . 1 . . . . . 8 Heat Flow Errors 11 | . . . . . . 1 . . . . . . . . . . . . . . . . . . 1 . 1 . . . . . . 8 Energy Discharges 8 | . . . . . . 2 . . . . . . . . . . . . . 1 . . . . . . . . . . . . 1 4 Parts Rejected 4 | . . . . . . . . . . . . . . . . . . . . . . . . . . . . . . . . . . 4 Data Loss (minor) 9 | . . . . . . 2 . . . . . . . . 1 1 . . 3 . . . . . . . . 1 . . . . . 1 Targeting Errors 24 | . . . . . . 2 . . . . . . . . . . . . . . . . . . . . . 2 . . . . . 20 Weapon Failures 6 | . . . . . . . . . . . . . . . . . . . . . . . . . . . . . . . . . . 6 Overload Shots . | . . . . . . . . . . . . . . . . . . . . . . . . . . . . . . . . . . . Overflow Damage 5078 | . . . . . . 3 . . . 848 . 155 . . . 206 137 . . . . . . 235 200 . . . 18 107 59 . 317 2793 Projectiles 2532 | . . . . . . . . . . . . . . . . . . . . . . . . . . . . . . . . . . 2532 Explosions 49 | . . . . . . 3 . . . . . . . . . . . . . . . . . 33 . . . . . . . . . 13 Melee 2497 | . . . . . . . . . . 848 . 155 . . . 206 137 . . . . . . 202 200 . . . 18 107 59 . 317 248 Knockbacks 52 | . . . . . . . . . . . . . . . . . . . . . . . . . . . . . . . . . . 52 Impact . | . . . . . . . . . . . . . . . . . . . . . . . . . . . . . . . . . . . Kinetic 47 | . . . . . . . . . . . . . . . . . . . . . . . . . . . . . . . . . . 47 Secondary 5 | . . . . . . . . . . . . . . . . . . . . . . . . . . . . . . . . . . 5 Self-Inflicted Damage 40 | . . 40 . . . . . . . . . . . . . . . . . . . . . . . . . . . . . . . . Shots 1 | . . 1 . . . . . . . . . . . . . . . . . . . . . . . . . . . . . . . . Rammed 11 | . . . . . 7 4 . . . . . . . . . . . . . . . . . . . . . . . . . . . . Targets Rammed 12 | . . . . . 8 4 . . . . . . . . . . . . . . . . . . . . . . . . . . . . Kicked . | . . . . . . . . . . . . . . . . . . . . . . . . . . . . . . . . . . . Crushed 1 | . . . . . 1 . . . . . . . . . . . . . . . . . . . . . . . . . . . . . Highest Temperature 395 | 60 . 133 . . 363 225 7 . . . . 98 182 136 82 160 31 6 395 23 20 46 40 36 110 . 146 . 8 . 198 . . 274 Average Temperature 26 | 30 . 58 . . 54 30 7 . . . . 34 54 55 34 69 5 2 16 8 8 16 15 15 64 . 76 . 8 . 122 . . 17 Received Heat Transfer 1236 | . . 72 . . 207 591 9 . . . 18 18 18 18 . . 57 . 18 . . 9 . 18 . . . . 21 . . . 39 123 Effects 1 | . . . . . . . . . . . . . . . . . . . . . . . . . . . . . . . . . . 1 Energy Bleed 1 | . . . . . . . . . . . . . . . . . . . . . . . . . . . . . . . . . . 1 Siege Activations . | . . . . . . . . . . . . . . . . . . . . . . . . . . . . . . . . . . . Robots Corrupted . | . . . . . . . . . . . . . . . . . . . . . . . . . . . . . . . . . . . Combat Hostiles . | . . . . . . . . . . . . . . . . . . . . . . . . . . . . . . . . . . . Parts Fried . | . . . . . . . . . . . . . . . . . . . . . . . . . . . . . . . . . . . Impact Corruptions 2 | . . . . . . . . . . . . . . . . . . . . . . . . . . . . . . . . . . 2 Robots Melted . | . . . . . . . . . . . . . . . . . . . . . . . . . . . . . . . . . . . Combat Hostiles . | . . . . . . . . . . . . . . . . . . . . . . . . . . . . . . . . . . . Parts Melted 7 | . . 4 . . 2 . . . . . . . . . . . . . . . . . . . . . . . . . . . 1 . Heat Transferred 1530 | 111 . 888 . . 481 . . . . . . . . . . . . . . . . . . . . . . . . . . . . 50 Parts Sabotaged 2 | . . . . . . . . . . . . . . . . . . . . . . . . . . . . . . . . . . 2 Parts Stolen . | . . . . . . . . . . . . . . . . . . . . . . . . . . . . . . . . . . . Parts Stripped . | . . . . . . . . . . . . . . . . . . . . . . . . . . . . . . . . . . . Power Chain Reactions . | . . . . . . . . . . . . . . . . . . . . . . . . . . . . . . . . . . . Missiles Intercepted . | . . . . . . . . . . . . . . . . . . . . . . . . . . . . . . . . . . . Alert | -11 -10 -10 -10 -9 -8 -7 -7 -7 -7 -7 -6 -6 -6 -6 -6 -5 -5 -5 -5 -5 -5 -5 -4 -4 -4 -4 -4 -3 -3 -3 -2 -2 -2 -1 ------- Run | Scr Mat Min Exi Min Mat Fac Low Low Zio Dee Pro Fac Low Low Dat Pro Fac Was Fac Upp Upp War Pro Fac Upp Upp Zhi Pro Res Tes Res Qua Sec Acc Peak Influence 7979 | 5 18 101 . . 245 893 . . . . . 495 . . . . 167 43 503 . . . . 300 . . . . 261 627 432 428 1741 7979 Average Influence 935 | 3 8 40 . . 83 373 . . . . . 161 . . . . 52 34 181 . . . . 61 . . . . 106 264 316 265 607 4543 Maximum Alert Level 5 | . . . . . 1 3 . . . . . 2 . . . . . . 2 . . . . 1 . . . . 1 2 2 2 5 5 Low Security (%) 49 | 100 100 100 . 100 95 41 . . . . . 60 . . . . 100 100 64 . . . . 97 . . . . 97 60 . 28 26 . Level 1 10 | . . . . . 4 17 . . . . . 34 . . . . . . . . . . . 2 . . . . 2 8 91 63 28 . Level 2 8 | . . . . . . 17 . . . . . 5 . . . . . . 35 . . . . . . . . . . 31 8 8 21 . Level 3 . | . . . . . . 23 . . . . . . . . . . . . . . . . . . . . . . . . . . . . Level 4 2 | . . . . . . . . . . . . . . . . . . . . . . . . . . . . . . . . . . 6 Level 5 8 | . . . . . . . . . . . . . . . . . . . . . . . . . . . . . . . . . . 27 High Security 19 | . . . . . . . . . . . . . . . . . . . . . . . . . . . . . . . . . . 65 Max Security 1 | . . . . . . . . . . . . . . . . . . . . . . . . . . . . . . . . . 24 . Squads Dispatched 108 | . . . . . 1 10 . . . . . 2 . . . . 3 . 4 . . . . 2 . . . . 2 2 5 1 10 66 Investigation 17 | . . . . . . 5 . . . . . 2 . . . . 1 . . . . . . . . . . . 1 2 1 1 1 3 Extermination 6 | . . . . . . 2 . . . . . . . . . . 1 . . . . . . 1 . . . . . . . . . 2 Reinforcement 22 | . . . . . 1 3 . . . . . . . . . . 1 . 4 . . . . . . . . . 1 . 4 . 3 5 Assault 58 | . . . . . . . . . . . . . . . . . . . . . . . . . . . . . . . . . 6 52 Garrison 5 | . . . . . . . . . . . . . . . . . . . . . . . . 1 . . . . . . . . . 4 Intercept . | . . . . . . . . . . . . . . . . . . . . . . . . . . . . . . . . . . . Construction Impeded 5 | . . . . . . . . . . . . . . . . . . . . . . . . . . . . . . . . . . 5 Haulers Reinforced 8 | . . . . . . 3 . . . . . . . . . . 1 . 2 . . . . . . . . . . . 2 . . . Stealth | -11 -10 -10 -10 -9 -8 -7 -7 -7 -7 -7 -6 -6 -6 -6 -6 -5 -5 -5 -5 -5 -5 -5 -4 -4 -4 -4 -4 -3 -3 -3 -2 -2 -2 -1 --------- Run | Scr Mat Min Exi Min Mat Fac Low Low Zio Dee Pro Fac Low Low Dat Pro Fac Was Fac Upp Upp War Pro Fac Upp Upp Zhi Pro Res Tes Res Qua Sec Acc Distress Signals 29 | . . . . . . 1 . . . . . 1 . . . . 1 . 1 . . 1 . . . . . . 4 1 4 1 5 9 Communications Jammed . | . . . . . . . . . . . . . . . . . . . . . . . . . . . . . . . . . . . Distress Signals . | . . . . . . . . . . . . . . . . . . . . . . . . . . . . . . . . . . . Times Spotted 887 | . 3 9 2 . 17 47 5 3 . 5 10 9 1 4 . 1 33 5 11 7 . 3 . 42 3 1 . 5 36 7 5 7 76 530 Peak Tracking Total 80 | . 3 3 9 . 5 6 3 3 . 3 9 3 2 3 . 3 7 5 5 8 . 4 . 16 7 1 . 5 30 3 4 2 35 80 Tactical Retreats 111 | . . 2 . . 1 9 2 . . . 2 2 . 3 . . 12 . 2 . . . . 8 1 . . 1 2 2 1 . 9 52 Traps | -11 -10 -10 -10 -9 -8 -7 -7 -7 -7 -7 -6 -6 -6 -6 -6 -5 -5 -5 -5 -5 -5 -5 -4 -4 -4 -4 -4 -3 -3 -3 -2 -2 -2 -1 ------- Run | Scr Mat Min Exi Min Mat Fac Low Low Zio Dee Pro Fac Low Low Dat Pro Fac Was Fac Upp Upp War Pro Fac Upp Upp Zhi Pro Res Tes Res Qua Sec Acc Traps Triggered 16 | . . . . . . 4 . . . . . . . . . . 3 . . . . . . 2 . . . . . . 1 1 2 3 Indirectly . | . . . . . . . . . . . . . . . . . . . . . . . . . . . . . . . . . . . Trap Hack Attempts . | . . . . . . . . . . . . . . . . . . . . . . . . . . . . . . . . . . . Triggered . | . . . . . . . . . . . . . . . . . . . . . . . . . . . . . . . . . . . Disarmed . | . . . . . . . . . . . . . . . . . . . . . . . . . . . . . . . . . . . Reprogrammed 28 | . . . . . . . . . . . . 10 . . . . . . . . . . . . . . . . 10 . . . 8 . Reused 3 | . . . . . . . . . . . . 2 . . . . . . . . . . . . . . . . . . . . 1 . Traps Extracted . | . . . . . . . . . . . . . . . . . . . . . . . . . . . . . . . . . . . Installed 1 | . . . . . . . . . . . . . . . 1 . . . . . . . . . . . . . . . . . . . Triggered 24 | . . . . . . . . . . . 2 2 1 3 . . . . . . . 11 . . . 4 . . . . . . 1 . Machines | -11 -10 -10 -10 -9 -8 -7 -7 -7 -7 -7 -6 -6 -6 -6 -6 -5 -5 -5 -5 -5 -5 -5 -4 -4 -4 -4 -4 -3 -3 -3 -2 -2 -2 -1 ---------- Run | Scr Mat Min Exi Min Mat Fac Low Low Zio Dee Pro Fac Low Low Dat Pro Fac Was Fac Upp Upp War Pro Fac Upp Upp Zhi Pro Res Tes Res Qua Sec Acc Machines Disabled 54 | . . . . . . 1 . . . 2 . 1 . . . . . . . . . . 1 3 . . . . 1 2 3 3 6 31 Max in Single Turn 2 | . . . . . . 1 . . . 1 . 1 . . . . . . . . . . 1 2 . . . . 1 1 1 1 1 1 Garrison Access 18 | . . . . . . 2 . . . . . 1 . . . . 1 . 1 . . . . . . . . . 3 1 1 1 1 6 Energy Cycler 2 | . . . . . . . . . . . . . . . . . . . . . . . . . . . . . . . . . . 2 Machines Sabotaged . | . . . . . . . . . . . . . . . . . . . . . . . . . . . . . . . . . . . Garrisons Compromised . | . . . . . . . . . . . . . . . . . . . . . . . . . . . . . . . . . . . Overloaded Fab Kills . | . . . . . . . . . . . . . . . . . . . . . . . . . . . . . . . . . . . Fab Network Shutdowns 4 | . . . . . . . . . . . . 1 . . . . . . 1 . . . . . . . . . . 1 . . . 1 Hacking | -11 -10 -10 -10 -9 -8 -7 -7 -7 -7 -7 -6 -6 -6 -6 -6 -5 -5 -5 -5 -5 -5 -5 -4 -4 -4 -4 -4 -3 -3 -3 -2 -2 -2 -1 --------- Run | Scr Mat Min Exi Min Mat Fac Low Low Zio Dee Pro Fac Low Low Dat Pro Fac Was Fac Upp Upp War Pro Fac Upp Upp Zhi Pro Res Tes Res Qua Sec Acc Machines Accessed 163 | . 2 . 2 . 6 12 1 1 . . . 15 1 2 3 . 18 . 7 . . 2 . 9 . 1 4 . 11 14 5 17 10 20 Terminals 92 | . 2 . . . 6 5 1 . . . . 8 . . . . 12 . 4 . . . . 4 . . . . 5 8 2 14 8 13 Fabricators 16 | . . . . . . 2 . . . . . 2 . . . . 3 . 1 . . . . 1 . . . . 1 2 1 . . 3 Repair Stations 8 | . . . . . . 1 . . . . . 1 . . . . 1 . . . . . . 2 . . . . 1 1 . 1 . . Recycling Units 2 | . . . . . . . . . . . . 1 . . . . . . . . . . . 1 . . . . . . . . . . Scanalyzers 13 | . . . . . . 2 . . . . . 2 . . . . 1 . 1 . . . . 1 . . . . 1 2 1 1 1 . Garrison Access 16 | . . . . . . 2 . . . . . 1 . . . . 1 . 1 . . . . . . . . . 3 1 1 1 1 4 Total Hacks 583 | . 10 . 2 . 22 29 5 1 . . . 57 1 2 23 . 91 . 30 . . 2 . 46 . 1 17 . 34 47 23 68 36 36 Successful 419 | . 5 . 2 . 11 13 2 1 . . . 34 1 2 23 . 73 . 28 . . 2 . 36 . 1 17 . 29 34 14 53 27 11 Failed 162 | . 5 . . . 11 16 3 . . . . 22 . . . . 18 . 2 . . . . 10 . . . . 5 13 8 15 9 25 Catastrophic 24 | . . . . . . 3 . . . . . 1 . . . . 2 . . . . . . . . . . . 1 1 . 2 1 13 Database Lockouts 2 | . . . . . . . . . . . . 1 . . . . . . . . . . . . . . . . . . 1 . . . Manual 301 | . 10 . 1 . 16 16 4 . . . . 26 . . . . 53 . 16 . . 1 . 25 . . . . 15 30 9 51 16 12 Terminals 367 | . 10 . . . 22 11 5 . . . . 34 . . . . 56 . 20 . . . . 30 . . . . 21 33 9 61 31 24 Fabricators 66 | . . . . . . 4 . . . . . 9 . . . . 18 . 6 . . . . 5 . . . . 1 7 9 . . 7 Repair Stations 24 | . . . . . . 2 . . . . . 2 . . . . 6 . . . . . . 6 . . . . 3 2 . 3 . . Recycling Units 5 | . . . . . . . . . . . . 2 . . . . . . . . . . . 3 . . . . . . . . . . Scanalyzers 46 | . . . . . . 8 . . . . . 8 . . . . 10 . 3 . . . . 2 . . . . 4 3 2 3 3 . Garrison Access 26 | . . . . . . 4 . . . . . 2 . . . . 1 . 1 . . . . . . . . . 5 2 3 1 2 5 Terminal Hacks 194 | . 4 . 2 . 5 1 2 1 . . . 13 1 2 23 . 26 . 11 . . 2 . 13 . 1 17 . 13 12 3 24 14 4 Record 19 | . . . 1 . . . 1 . . . . . . . 11 . . . . . . . . . . . 5 . . . . 1 . . Part Schematic 33 | . . . . . . . 1 . . . . 2 . . 9 . 7 . 2 . . . . 4 . . 4 . 1 . 1 2 . . Robot Analysis 7 | . 2 . . . . . . . . . . . . . . . . . . . . . . . . . 4 . 1 . . . . . Prototype ID Bank 24 | . 2 . . . 3 . . . . . . 1 . . 3 . 1 . . . . . . 1 . . 4 . 2 3 . 2 2 . Open Door 11 | . . . . . . . . 1 . . . . 1 2 . . 1 . . . . 2 . . . 1 . . . . . 1 2 . Level Access Points 2 | . . . . . . . . . . . . . . . . . . . . . . . . . . . . . . . . 1 1 . Branch Access Points 8 | . . . . . . 1 . . . . . 1 . . . . 1 . 1 . . . . 1 . . . . 1 . 1 . . 1 Emergency Access Points 4 | . . . . . . . . . . . . . . . . . . . . . . . . 1 . . . . 1 1 . . 1 . Machine Index 7 | . . . . . . . . . . . . . . . . . 1 . 1 . . . . 1 . . . . 1 1 . 1 1 . Terminal Index 3 | . . . . . 1 . . . . . . 1 . . . . 1 . . . . . . . . . . . . . . . . . Fabricator Index 2 | . . . . . . . . . . . . 1 . . . . 1 . . . . . . . . . . . . . . . . . Scanalyzer Index 2 | . . . . . . . . . . . . . . . . . 1 . . . . . . . . . . . . . . . . 1 Garrison Index 1 | . . . . . . . . . . . . . . . . . . . . . . . . . . . . . . . . . . 1 Alert Level 2 | . . . . . . . . . . . . . . . . . 1 . . . . . . . . . . . . . . 1 . . Unreport Threat 4 | . . . . . . . . . . . . . . . . . . . . . . . . . . . . . . . . 4 . . Locate Traps 22 | . . . . . . . . . . . . 2 . . . . 4 . 3 . . . . 1 . . . . 2 2 . 6 2 . Reprogram Traps 6 | . . . . . . . . . . . . 2 . . . . . . . . . . . . . . . . 2 . . . 2 . Recall Investigation 5 | . . . . . . . . . . . . 1 . . . . 1 . . . . . . . . . . . . 1 . 1 1 . Recall Extermination 1 | . . . . . . . . . . . . . . . . . 1 . . . . . . . . . . . . . . . . . Hauler Manifests 10 | . . . . . 1 . . . . . . 1 . . . . 1 . 1 . . . . 1 . . . . . 1 1 1 1 1 Registered Components 6 | . . . . . . . . . . . . 1 . . . . 1 . 1 . . . . 1 . . . . . 1 . 1 . . Registered Prototypes 4 | . . . . . . . . . . . . . . . . . 1 . 1 . . . . 1 . . . . 1 . . . . . Zone Layout 9 | . . . . . . . . . . . . . . . . . 2 . 1 . . . . 1 . . . . 1 2 . 2 . . EX-Prototype ID Bank 1 | . . . 1 . . . . . . . . . . . . . . . . . . . . . . . . . . . . . . . Activate Exoskeleton 1 | . . . . . . . . . . . . . . . . . . . . . . . . . . . . . . . . . 1 . Fabricator Hacks 42 | . . . . . . . . . . . . 6 . . . . 13 . 5 . . . . 4 . . . . . 5 6 . . 3 Load Schematic 18 | . . . . . . . . . . . . 2 . . . . 5 . 2 . . . . 2 . . . . . 2 3 . . 2 Build 24 | . . . . . . . . . . . . 4 . . . . 8 . 3 . . . . 2 . . . . . 3 3 . . 1 Repair Station Hacks 21 | . . . . . . 1 . . . . . 2 . . . . 6 . . . . . . 6 . . . . 2 2 . 2 . . Scan Component 11 | . . . . . . 1 . . . . . 1 . . . . 3 . . . . . . 3 . . . . 1 1 . 1 . . Repair 10 | . . . . . . . . . . . . 1 . . . . 3 . . . . . . 3 . . . . 1 1 . 1 . . Recycling Unit Hacks 1 | . . . . . . . . . . . . . . . . . . . . . . . . 1 . . . . . . . . . . Retrieve Components 1 | . . . . . . . . . . . . . . . . . . . . . . . . 1 . . . . . . . . . . Scanalyzer 40 | . . . . . . 6 . . . . . 5 . . . . 10 . 3 . . . . 2 . . . . 4 3 2 3 2 . Insert Component 26 | . . . . . . 4 . . . . . 3 . . . . 5 . 1 . . . . 1 . . . . 2 3 2 3 2 . Analyze 14 | . . . . . . 2 . . . . . 2 . . . . 5 . 2 . . . . 1 . . . . 2 . . . . . Garrison Access Hacks 11 | . . . . . . . . . . . . 1 . . . . 1 . 1 . . . . . . . . . 3 1 1 1 1 1 Seal Access 11 | . . . . . . . . . . . . 1 . . . . 1 . 1 . . . . . . . . . 3 1 1 1 1 1 Unauthorized Hacks 254 | . 3 . . . 18 20 . . . . . 18 . . . . 35 . 16 . . . . 20 . . . . 15 23 4 47 21 14 Terminals 89 | . 1 . . . 6 1 . . . . . 5 . . . . 12 . 7 . . . . 7 . . . . 6 8 . 23 10 3 Track 28 | . . . . . 2 . . . . . . 1 . . . . 4 . 3 . . . . 2 . . . . 1 3 . 9 3 . Assimilate 8 | . . . . . . . . . . . . . . . . . 3 . . . . . . . . . . . 1 . . 3 . 1 Botnet 32 | . 1 . . . 2 1 . . . . . 2 . . . . 4 . 3 . . . . 2 . . . . 2 4 . 8 3 . Disrupt 10 | . . . . . 1 . . . . . . . . . . . . . . . . . . 2 . . . . 1 . . 2 2 2 Operators 11 | . . . . . 1 . . . . . . 2 . . . . 1 . 1 . . . . 1 . . . . 1 1 . 1 2 . Fabricators 16 | . . . . . . 2 . . . . . 2 . . . . 5 . 1 . . . . 1 . . . . 1 2 2 . . . Report 1 | . . . . . . . . . . . . . . . . . 1 . . . . . . . . . . . . . . . . . Prioritize 2 | . . . . . . . . . . . . . . . . . 1 . . . . . . . . . . . . . 1 . . . Siphon 11 | . . . . . . 1 . . . . . 2 . . . . 3 . 1 . . . . 1 . . . . . 2 1 . . . Haulers 1 | . . . . . . 1 . . . . . . . . . . . . . . . . . . . . . . . . . . . . Download 1 | . . . . . . . . . . . . . . . . . . . . . . . . . . . . . 1 . . . . . Repair Stations . | . . . . . . . . . . . . . . . . . . . . . . . . . . . . . . . . . . . Recycling Units 2 | . . . . . . . . . . . . . . . . . . . . . . . . 2 . . . . . . . . . . Recyclers 1 | . . . . . . . . . . . . . . . . . . . . . . . . 1 . . . . . . . . . . Mask 1 | . . . . . . . . . . . . . . . . . . . . . . . . 1 . . . . . . . . . . Scanalyzers . | . . . . . . . . . . . . . . . . . . . . . . . . . . . . . . . . . . . Garrison Access 3 | . . . . . . 2 . . . . . . . . . . . . . . . . . . . . . . . 1 . . . . Watchers 1 | . . . . . . . . . . . . . . . . . . . . . . . . . . . . . . 1 . . . . Jam 2 | . . . . . . 2 . . . . . . . . . . . . . . . . . . . . . . . . . . . . Data Cores Recovered . | . . . . . . . . . . . . . . . . . . . . . . . . . . . . . . . . . . . Used . | . . . . . . . . . . . . . . . . . . . . . . . . . . . . . . . . . . . Hacking Detections 113 | . 2 . . . 6 11 1 . . . . 13 . . . . 16 . 2 . . . . 5 . . . . 8 10 3 9 8 19 Full Trace Events 11 | . . . . . . 3 . . . . . 1 . . . . 1 . . . . . . . . . . . . 2 . 1 . 3 Feedback Events 4 | . . . . . . 1 . . . . . 1 . . . . . . . . . . . . . . . . . 1 . . . 1 Corruption 3 | . . . . . . 1 . . . . . 1 . . . . . . . . . . . . . . . . . . . . . 1 Hackware Fried 1 | . . . . . . . . . . . . . . . . . . . . . . . . . . . . . . 1 . . . . Feedback Blocked . | . . . . . . . . . . . . . . . . . . . . . . . . . . . . . . . . . . . Robot Schematics Acquired . | . . . . . . . . . . . . . . . . . . . . . . . . . . . . . . . . . . . Robots Built . | . . . . . . . . . . . . . . . . . . . . . . . . . . . . . . . . . . . Matter . | . . . . . . . . . . . . . . . . . . . . . . . . . . . . . . . . . . . Time . | . . . . . . . . . . . . . . . . . . . . . . . . . . . . . . . . . . . Total Robot Build Rating . | . . . . . . . . . . . . . . . . . . . . . . . . . . . . . . . . . . . Part Schematics Acquired 41 | . . . . . . 1 1 . . . . 3 . . 9 . 11 . 2 . . . . 5 . . 4 . 2 . 1 2 . . Parts Built 19 | . . . . . . . . . . . . 3 . . . . 5 . 3 . . . . 1 . . . . . 3 3 . . 1 Matter 4605 | . . . . . . . . . . . . 568 . . . . 957 . 597 . . . . 405 . . . . . 936 725 . . 417 Time 1780 | . . . . . . . . . . . . 236 . . . . 463 . 408 . . . . 140 . . . . . 333 126 . . 74 Total Part Build Rating 126 | . . . . . . . . . . . . 15 . . . . 27 . 21 . . . . 5 . . . . . 27 22 . . 9 Parts Repaired 10 | . . . . . . . . . . . . 1 . . . . 3 . . . . . . 3 . . . . 1 1 . 1 . . Time 513 | . . . . . . . . . . . . 60 . . . . 99 . . . . . . 199 . . . . 26 89 . 40 . . Parts Recycled . | . . . . . . . . . . . . . . . . . . . . . . . . . . . . . . . . . . . Recycled Matter . | . . . . . . . . . . . . . . . . . . . . . . . . . . . . . . . . . . . Retrieved Matter . | . . . . . . . . . . . . . . . . . . . . . . . . . . . . . . . . . . . Retrieved Components 3 | . . . . . . . . . . . . . . . . . . . . . . . . 3 . . . . . . . . . . Parts Scanalyzed 11 | . . . . . . 2 . . . . . 2 . . . . 4 . 1 . . . . 1 . . . . 1 . . . . . Part Schematics Acquired 8 | . . . . . . 1 . . . . . 1 . . . . 4 . 1 . . . . 1 . . . . . . . . . . Parts Damaged 1 | . . . . . . . . . . . . . . . . . 1 . . . . . . . . . . . . . . . . . Bothacking | -11 -10 -10 -10 -9 -8 -7 -7 -7 -7 -7 -6 -6 -6 -6 -6 -5 -5 -5 -5 -5 -5 -5 -4 -4 -4 -4 -4 -3 -3 -3 -2 -2 -2 -1 ------------ Run | Scr Mat Min Exi Min Mat Fac Low Low Zio Dee Pro Fac Low Low Dat Pro Fac Was Fac Upp Upp War Pro Fac Upp Upp Zhi Pro Res Tes Res Qua Sec Acc Used RIF Installer . | . . . . . . . . . . . . . . . . . . . . . . . . . . . . . . . . . . . Robots Hacked 1 | . . . . . . . . . . . . . . . 1 . . . . . . . . . . . . . . . . . . . Non-combat . | . . . . . . . . . . . . . . . . . . . . . . . . . . . . . . . . . . . Combat 1 | . . . . . . . . . . . . . . . 1 . . . . . . . . . . . . . . . . . . . Robot Hacks Applied 1 | . . . . . . . . . . . . . . . 1 . . . . . . . . . . . . . . . . . . . parse_system 1 | . . . . . . . . . . . . . . . 1 . . . . . . . . . . . . . . . . . . . Relay Couplers Released 8 | . . . . . . . . . . . . . . . . . . . . . . . . . . . . . . . . . . 8 Machine Destruction 4 | . . . . . . . . . . . . . . . . . . . . . . . . . . . . . . . . . . 4 Programmers 4 | . . . . . . . . . . . . . . . . . . . . . . . . . . . . . . . . . . 4 Robots Rewired . | . . . . . . . . . . . . . . . . . . . . . . . . . . . . . . . . . . . Allies Hacked . | . . . . . . . . . . . . . . . . . . . . . . . . . . . . . . . . . . . Hacks Repelled 1 | . . . . . . . . . . . . . . . . . . . 1 . . . . . . . . . . . . . . . Allies | -11 -10 -10 -10 -9 -8 -7 -7 -7 -7 -7 -6 -6 -6 -6 -6 -5 -5 -5 -5 -5 -5 -5 -4 -4 -4 -4 -4 -3 -3 -3 -2 -2 -2 -1 -------- Run | Scr Mat Min Exi Min Mat Fac Low Low Zio Dee Pro Fac Low Low Dat Pro Fac Was Fac Upp Upp War Pro Fac Upp Upp Zhi Pro Res Tes Res Qua Sec Acc Total Allies 17 | . . . . . . . . . . 1 . . . . 1 . 2 1 1 . . . . . . . . . 1 . . 3 6 1 Largest Group 3 | . . . . . . . . . . 1 . . . . 1 1 2 1 1 . . . . . . . . . 1 . . 2 3 1 Highest-Rated Group 1353 | . . . . . . . . . . 118 . . . . 59 59 52 31 29 . . . . . . . . . 10 . . 36 1353 44 Highest-Rated Ally 1075 | . . . . . . . . . . 118 . . . . 59 59 26 31 29 . . . . . . . . . 10 . . 26 1075 44 Total Orders 4 | . . . . . . . . . . . . . . . . . 1 . 2 . . . . . . . . . . . . . . 1 STAY 1 | . . . . . . . . . . . . . . . . . . . 1 . . . . . . . . . . . . . . . GOTO 2 | . . . . . . . . . . . . . . . . . 1 . . . . . . . . . . . . . . . . 1 RETURN 1 | . . . . . . . . . . . . . . . . . . . 1 . . . . . . . . . . . . . . . Ally Attacks 53 | . . . . . . . . . . 13 . . . . . . . 6 3 . . . . . . . . . . . . . 31 . Total Damage 2505 | . . . . . . . . . . 617 . . . . . . . 125 70 . . . . . . . . . . . . . 1693 . Kills 8 | . . . . . . . . . . 5 . . . . . . . . 1 . . . . . . . . . . . . . 2 . Allies Corrupted 3 | . . . . . . . . . . . . . . . . . . . . . . . . . . . . . . . . . 3 . Allies Melted . | . . . . . . . . . . . . . . . . . . . . . . . . . . . . . . . . . . . Field Lobotomies 4 | . . . . . . . . . . . . . . . 1 . . . 1 . . . . . . . . . . . . . 2 . Intel | -11 -10 -10 -10 -9 -8 -7 -7 -7 -7 -7 -6 -6 -6 -6 -6 -5 -5 -5 -5 -5 -5 -5 -4 -4 -4 -4 -4 -3 -3 -3 -2 -2 -2 -1 ------- Run | Scr Mat Min Exi Min Mat Fac Low Low Zio Dee Pro Fac Low Low Dat Pro Fac Was Fac Upp Upp War Pro Fac Upp Upp Zhi Pro Res Tes Res Qua Sec Acc Robot Analysis Total 7 | . 2 . . . . . . . . . . . . . . . . . . . . . . . . . 4 . 1 . . . . . Derelict Logs Recovered 16 | . . 1 . 2 . . . 2 1 . . . 2 1 . 2 . . . 1 1 . 1 . . 2 . . . . . . . . Drone Launches 5 | . . . . . . . . . . . . . . . . . 2 . . . . . . . . . . . . . . . . 3 Drone Recoveries . | . . . . . . . . . . . . . . . . . . . . . . . . . . . . . . . . . . . Exploration | -11 -10 -10 -10 -9 -8 -7 -7 -7 -7 -7 -6 -6 -6 -6 -6 -5 -5 -5 -5 -5 -5 -5 -4 -4 -4 -4 -4 -3 -3 -3 -2 -2 -2 -1 ------------- Run | Scr Mat Min Exi Min Mat Fac Low Low Zio Dee Pro Fac Low Low Dat Pro Fac Was Fac Upp Upp War Pro Fac Upp Upp Zhi Pro Res Tes Res Qua Sec Acc Turns Passed 14792 | 19 82 637 984 297 1336 1964 139 107 233 479 176 529 137 189 75 148 929 36 643 111 76 348 85 742 165 117 70 258 417 425 312 299 365 1863 Spaces Moved 27288 | 10 63 331 391 161 579 1102 344 334 710 889 390 1116 438 535 181 486 2446 114 1036 407 240 608 269 1404 437 343 185 432 1008 1633 1037 1281 1216 5132 Core 30 | . . . . . . 30 . . . . . . . . . . . . . . . . . . . . . . . . . . . . Treads 2164 | . . 331 345 160 579 749 . . . . . . . . . . . . . . . . . . . . . . . . . . . . Legs 73 | 10 63 . . . . . . . . . . . . . . . . . . . . . . . . . . . . . . . . . Wheels 47 | . . . 46 1 . . . . . . . . . . . . . . . . . . . . . . . . . . . . . . Hover . | . . . . . . . . . . . . . . . . . . . . . . . . . . . . . . . . . . . Flight 24974 | . . . . . . 323 344 334 710 889 390 1116 438 535 181 486 2446 114 1036 407 240 608 269 1404 437 343 185 432 1008 1633 1037 1281 1216 5132 Fastest Speed 8 | 120 120 160 120 120 180 26 26 26 26 26 26 26 26 26 26 26 26 26 26 26 26 26 26 26 26 26 26 26 12 13 13 13 8 8 Average Speed 32 | 120 120 164 172 179 180 124 26 26 26 26 26 26 26 26 26 26 26 26 26 26 26 26 26 26 26 26 26 26 12 13 13 13 12 12 Slowest Speed 250 | 120 120 180 180 180 180 250 26 26 26 94 26 26 26 26 26 26 26 26 26 26 26 26 26 29 26 26 26 26 13 13 14 13 13 13 Overloaded Moves 49 | . . . . . . . . . . . . . . . . . . . . . . . . . . . . . 9 . . . 6 34 Propulsion Burnouts . | . . . . . . . . . . . . . . . . . . . . . . . . . . . . . . . . . . . Robots Hopped 260 | . . . . . . 2 1 1 . . . 18 1 . . 1 32 . 5 3 1 2 . 17 1 . . . 25 14 10 10 20 96 Cave-ins Triggered . | . . . . . . . . . . . . . . . . . . . . . . . . . . . . . . . . . . . Teleports 1 | . . . . . . . . . . . . . . . . . . . . . . . . . . . 1 . . . . . . . Exploration Rate (%) 58 | 2 13 67 70 39 38 31 56 57 82 75 59 39 57 75 75 65 58 85 23 71 49 93 51 43 58 57 62 59 42 94 28 97 76 89 Regions Visited 34 Branch Regions 23 Pre-discovered Areas 11 | . . . 1 2 . . . . 2 . . . 1 . 1 . . . . . . . . . . 1 3 . . . . . . . Known Exits Taken 26 | . . . . . . 1 1 1 1 1 1 1 1 1 1 1 . . 1 1 1 1 1 1 1 1 1 1 1 1 1 1 1 . Unknown Exits Taken 6 | 1 1 1 1 1 1 . . . . . . . . . . . . . . . . . . . . . . . . . . . . . Scrap Searched 24 | . . 1 . . . . 7 1 4 . 1 . 2 . . . . . . 1 1 . 2 . 3 1 . . . . . . . . Spaces Dug 398 | . . . . . 1 9 12 2 1 15 11 8 8 9 . . 50 . 43 1 . 5 3 31 15 4 . 12 39 32 14 15 15 43 Terrain Destroyed 854 | . . 13 . . 8 22 12 24 1 15 11 8 8 9 . . 50 . 43 1 . 5 3 47 15 4 . 53 39 32 14 15 15 387 Melee 379 | . . . . . 1 9 12 2 1 15 11 8 8 9 . . 50 . 43 1 . 5 3 31 15 4 . 12 39 32 14 15 15 24 Projectile 221 | . . . . . . 1 . . . . . . . . . . . . . . . . . . . . . . . . . . . 220 AOE 254 | . . 13 . . 7 12 . 22 . . . . . . . . . . . . . . . 16 . . . 41 . . . . . 143 Actions | -11 -10 -10 -10 -9 -8 -7 -7 -7 -7 -7 -6 -6 -6 -6 -6 -5 -5 -5 -5 -5 -5 -5 -4 -4 -4 -4 -4 -3 -3 -3 -2 -2 -2 -1 --------- Run | Scr Mat Min Exi Min Mat Fac Low Low Zio Dee Pro Fac Low Low Dat Pro Fac Was Fac Upp Upp War Pro Fac Upp Upp Zhi Pro Res Tes Res Qua Sec Acc Total 31381 | 12 69 388 698 169 763 1457 379 347 753 1111 451 1319 451 574 207 504 2652 120 1344 406 251 791 278 1716 468 365 206 561 1221 1791 1157 1381 1303 5718 Wait 2336 | . 5 26 299 8 55 77 23 4 19 67 48 175 4 25 16 16 147 3 239 1 12 156 2 265 15 19 . 114 174 94 67 69 17 75 Move 26766 | 9 62 330 390 160 578 1097 341 331 709 888 389 1082 435 534 180 483 2385 113 1025 400 237 604 268 1371 434 342 184 431 958 1604 1016 1260 1178 4958 Hop 228 | . . . . . . 2 1 1 . . . 15 1 . . 1 29 . 5 3 1 1 . 15 1 . . . 24 14 10 10 17 77 Pick Up 219 | . 2 2 6 . 22 29 2 4 10 39 . 11 1 2 1 . 15 1 4 . . 4 . 5 . . 4 . 5 8 5 8 11 18 Fast Attach 99 | 1 . 1 . . 6 20 . . . 10 . 1 . . . . 2 . 2 . . 6 2 6 . . 7 . 2 10 6 1 6 10 Attach 109 | . . 1 . . 8 16 . 1 2 3 1 3 1 1 2 1 5 1 1 . . 2 . 5 . . 1 . 3 4 4 2 11 30 Detach 26 | . . . . . 2 3 . 1 . 5 . . . . 1 . . . . . . . . 1 . . . . 1 . . . . 12 Swap 81 | . . 6 1 1 7 14 . . . 10 2 4 . 2 2 . 5 . 4 1 1 1 1 3 1 . . 2 1 1 . 3 5 3 Drop 242 | . . 3 1 . 16 50 . . 5 50 . 8 1 1 2 1 8 2 6 . . 11 1 2 . . 9 . 6 16 9 9 9 16 Fire 679 | 2 . 19 1 . 60 120 . 3 . . . . . . 1 . . . 1 . . . . 1 . . . 2 . . . . 2 467 Melee 557 | . . . . . 1 11 12 2 8 39 11 20 8 9 1 2 55 . 57 1 . 6 4 42 17 4 1 12 47 40 40 19 47 41 Ram . | . . . . . . . . . . . . . . . . . . . . . . . . . . . . . . . . . . . Kick . | . . . . . . . . . . . . . . . . . . . . . . . . . . . . . . . . . . . Crush 12 | . . . . . 8 4 . . . . . . . . . . . . . . . . . . . . . . . . . . . . Escape Stasis 24 | . . . . . . 14 . . . . . . . . . . . . . . . . . . . . . . . . . . . 10 Rewire . | . . . . . . . . . . . . . . . . . . . . . . . . . . . . . . . . . . . Trap 1 | . . . . . . . . . . . . . . . 1 . . . . . . . . . . . . . . . . . . . Miscellaneous 2 | . . . . . . . . . . . . . . . . . 1 . . . . . . . . . . . . . . . . 1 Route ------- -11/Scrapyard -10/Materials (discovered 2 exits: [*Min x2]) -10/Mines (discovered 2 exits: [*Mat] / *Exi) -10/Exiles -9/Mines -8/Materials -7/Factory (discovered 3 exits: *Fac / *Low x2) -7/Lower Caves -7/Lower Caves (discovered 2 exits: *Fac / *Zio) -7/Zion (discovered 2 exits: *Dee / [*Pro]) -7/Deep Caves -6/Proximity Caves -6/Factory (discovered 3 exits: *Fac / *Low x2) -6/Lower Caves -6/Lower Caves (discovered 2 exits: *Fac / *Dat) -6/Data Miner -5/Proximity Caves -5/Factory (discovered 7 exits: *Fac x3 / *Upp x2 / *Ext x2) -5/Waste -5/Factory (discovered 4 exits: *Upp x2 / Ext x2) -5/Upper Caves -5/Upper Caves (discovered 2 exits: *Fac / *War) -5/Warlord -4/Proximity Caves -4/Factory (discovered 4 exits: *Res x2 / *Upp x2) -4/Upper Caves -4/Upper Caves (discovered 2 exits: *Res / *Zhi) -4/Zhirov -3/Proximity Caves -3/Research (discovered 3 exits: *Arm / *Tes x2) -3/Testing -2/Research (discovered 2 exits: *Qua x2) -2/Quarantine (discovered 2 exits: *Acc / *Sec) -2/Section 7 -1/Access (discovered 2 exits: [*Sur] / Com) To Epsilon Eridani History --------- Turn | Location | Event 7 | -11/Scrapyard | Discovered new exit (range 3) 20 | -11/Scrapyard | Entered Materials 67 | -10/Materials | Discovered new exit (range 5) 101 | -10/Materials | Discovered new exit (range 16) 102 | -10/Materials | Entered Mines 315 | -10/Mines | Build established: Mutant 379 | -10/Mines | Learned Materials stockpile data 466 | -10/Mines | Discovered new exit (range 8) 724 | -10/Mines | Deemed a non-threat by the Exiles lab entrance 724 | -10/Mines | Discovered new exit (range 5) 739 | -10/Mines | Entered Exiles 783 | -10/Exiles | Met 8R-AWN 813 | -10/Exiles | Met EX-HEX 921 | -10/Exiles | Met EX-DEC 950 | -10/Exiles | Learned location of Zion (-7) 1064 | -10/Exiles | Met EX-BIN 1089 | -10/Exiles | Aligned with FarCom system 1091 | -10/Exiles | Given EX-Vault access code 1132 | -10/Exiles | Opened EX-Vault 1141 | -10/Exiles | Found Lightpack 2.0 1144 | -10/Exiles | Found Skeleton Box 1148 | -10/Exiles | Found Longsword +1 1187 | -10/Exiles | Warned to stay clear of 0b10 Research branches 1684 | -10/Exiles | Attacked by the Exiles 1714 | -10/Exiles | Discovered new exit (range 10) 1723 | -10/Exiles | Stole three prototypes: Lightpack 2.0, Skeleton Box, Longsword +1 1723 | -10/Exiles | Entered Mines 1759 | -9/Mines | Learned location of Storage (-9) 1986 | -9/Mines | Discovered new exit (range 14) 2020 | -9/Mines | Entered Materials 2020 | -8/Materials | Evolved 4 slots: Utility x4 2412 | -8/Materials | Discovered new exit (range 9) 2752 | -8/Materials | Build established: Scavenger-Mutant 3356 | -8/Materials | Entered Factory 3356 | -7/Factory | Evolved 2 slots: Propulsion x2 4025 | -7/Factory | Lost 3 parts (2n1w) 4404 | -7/Factory | Discovered new exit (range 10) 4548 | -7/Factory | Identified exit to Factory 5315 | -7/Factory | Identified exit to Lower Caves 5320 | -7/Factory | Entered Lower Caves 5356 | -7/Lower Caves | Encountered a Warlord checkpoint 5451 | -7/Lower Caves | Discovered new exit (range 12) 5458 | -7/Lower Caves | Identified exit to Lower Caves 5459 | -7/Lower Caves | Entered another Lower Caves area 5477 | -7/Lower Caves | Discovered exit to Factory (range 13) 5488 | -7/Lower Caves | Build established: Hauler-Sprinter 5511 | -7/Lower Caves | Learned Factory stockpile data 5516 | -7/Lower Caves | Learned Factory emergency access door positions 5545 | -7/Lower Caves | Discovered new exit (range 15) 5548 | -7/Lower Caves | Identified exit to Zion 5566 | -7/Lower Caves | Entered Zion 5574 | -7/Zion | Received a hallucinogenic algorithm 5582 | -7/Zion | Discovered new exit (range 14) 5607 | -7/Zion | System corruption cleaned by Quarantine Array 5623 | -7/Zion | Found Prototype Device 5635 | -7/Zion | Learned Factory terminal intel 5651 | -7/Zion | Learned location of Quarantine (-2) 5797 | -7/Zion | Discovered new exit (range 3) 5799 | -7/Zion | Identified exit to Deep Caves 5799 | -7/Zion | Saw the warning signs outside the Deep Caves entrance 5799 | -7/Zion | Entered Deep Caves 5800 | -7/Deep Caves | Met 5H-AD0 5951 | -7/Deep Caves | Attacked by Z-Imprinter 5959 | -7/Deep Caves | Destroyed Z-Imprinter 6023 | -7/Deep Caves | Found Prototype Device 6024 | -7/Deep Caves | Identified Zio. Metafield Generator 6032 | -7/Deep Caves | Found Prototype Protection 6034 | -7/Deep Caves | Identified Zio. Weapon Casing 6051 | -7/Deep Caves | Found Surveybot 24 Chip 6053 | -7/Deep Caves | Found Surveybot 24 Scanner 6072 | -7/Deep Caves | Found Prototype Ballistic Gun 6072 | -7/Deep Caves | Identified 5H-AD0's Sniper Rifle 6079 | -7/Deep Caves | Destroyed 5H-AD0 6082 | -7/Deep Caves | Found Prototype Processor 6124 | -7/Deep Caves | Z-Facility disabled 6168 | -7/Deep Caves | Found Zio. Weapon Casing 6198 | -7/Deep Caves | Discovered new exit (range 6) 6199 | -7/Deep Caves | Identified exit to Proximity Caves 6238 | -7/Deep Caves | Identified Phasing AFG 6249 | -7/Deep Caves | Found Field Lobotomy Kit 6278 | -7/Deep Caves | Entered Proximity Caves 6320 | -6/Proximity Caves | Spotted B-75 Beast 6451 | -6/Proximity Caves | Discovered exit to Factory (range 10) 6454 | -6/Proximity Caves | Entered Factory 6454 | -6/Factory | Evolved 2 slots: Utility x2 6457 | -6/Factory | Loaded intel: 20 terminal locations 6476 | -6/Factory | Identified Spectral Analyzer 6601 | -6/Factory | Repaired Imp. VTOL Module? 6638 | -6/Factory | Discovered new exit (range 3) 6638 | -6/Factory | Identified exit to Factory 6677 | -6/Factory | Found Prototype Processor 6677 | -6/Factory | Identified Exp. Signal Interpreter 6679 | -6/Factory | Found Exp. Signal Interpreter 6694 | -6/Factory | Discovered new exit (range 15) 6697 | -6/Factory | Central database locked down 6815 | -6/Factory | Fabricated Imp. Hacking Suite (x1) 6846 | -6/Factory | Identified exit to Lower Caves 6903 | -6/Factory | Fabricated Imp. Hacking Suite (x1) 6950 | -6/Factory | Fabricated Imp. Hacking Suite (x1) 6955 | -6/Factory | Local fabrication network quarantined 6983 | -6/Factory | Entered Lower Caves 7009 | -6/Lower Caves | Learned location of Extension (-5) 7113 | -6/Lower Caves | Discovered new exit (range 15) 7114 | -6/Lower Caves | Encountered a Warlord checkpoint 7116 | -6/Lower Caves | Learned Factory emergency access door positions 7117 | -6/Lower Caves | Identified exit to Lower Caves 7120 | -6/Lower Caves | Entered another Lower Caves area 7121 | -6/Lower Caves | Encountered a Warlord checkpoint 7140 | -6/Lower Caves | Discovered exit to Factory (range 5) 7271 | -6/Lower Caves | Build established: Hacker-Sprinter 7287 | -6/Lower Caves | Discovered new exit (range 13) 7297 | -6/Lower Caves | Identified exit to Data Miner 7309 | -6/Lower Caves | Entered Data Miner 7309 | -6/Data Miner | Discovered new exit (range 6) 7311 | -6/Data Miner | Identified exit to Proximity Caves 7316 | -6/Data Miner | Met Data Miner 7321 | -6/Data Miner | Learned location of Section 7 (-2) 7321 | -6/Data Miner | Acquired the access code to Warlord's prototype stash 7329 | -6/Data Miner | Received God Mode back door access code from Data Miner 7364 | -6/Data Miner | Assimilated Data Miner with FLK Orb 7384 | -6/Data Miner | Entered Proximity Caves 7384 | -5/Proximity Caves | Accompanied by 1 ally 7389 | -5/Proximity Caves | Destroyed Data Miner 7448 | -5/Proximity Caves | Discovered exit to Factory (range 14) 7491 | -5/Proximity Caves | Learned location of 1 exit from Upper Caves 7532 | -5/Proximity Caves | Entered Factory 7532 | -5/Factory | Evolved 2 slots: Utility x2 7571 | -5/Factory | Identified exit to Upper Caves 7571 | -5/Factory | Identified exit to Extension 7681 | -5/Factory | Discovered new exit (range 15) 7737 | -5/Factory | Fabricated Adv. System Shield (x1) 7864 | -5/Factory | Repaired Imp. Cesium-ion Thruster? 7872 | -5/Factory | Fabricated Exp. Sensor Array? 7961 | -5/Factory | Fabricated Exp. Utility Shielding? 8002 | -5/Factory | Repaired Broken Nuclear Pulse Array 8035 | -5/Factory | Repaired Imp. Flight Unit 8119 | -5/Factory | Fabricated Exp. Targeting Computer? 8244 | -5/Factory | Discovered new exit (range 15) 8358 | -5/Factory | Spotted B-75 Beast 8372 | -5/Factory | Discovered new exit (range 12) 8408 | -5/Factory | Found Mni. Smartbomb Launcher 8426 | -5/Factory | Identified exit to Factory 8443 | -5/Factory | Fabricated Adv. Hacking Suite (x1) 8461 | -5/Factory | Sucked down chute 8461 | -5/Factory | Entered Waste 8462 | -5/Waste | Met a frightened Derelict 8467 | -5/Waste | Spotted C-40 Crusher 8470 | -5/Waste | Spotted C-40 Crusher 8471 | -5/Waste | Spotted C-40 Crusher 8472 | -5/Waste | Spotted C-40 Crusher 8476 | -5/Waste | Spotted C-40 Crusher 8480 | -5/Waste | 2 allies followed down the chute 8490 | -5/Waste | Spotted C-40 Crusher 8491 | -5/Waste | Discovered new exit (range 13) 8494 | -5/Waste | Identified exit to Factory 8497 | -5/Waste | Entered Factory 8497 | -5/Factory | Accompanied by 1 ally 8628 | -5/Factory | Build established: Wizard-Sprinter 8682 | -5/Factory | Fabricated Exp. Targeting Computer? 8818 | -5/Factory | Fabricated Impulse Thruster Array (x1) 8912 | -5/Factory | Local fabrication network quarantined 8946 | -5/Factory | Fabricated Impulse Thruster Array (x1) 9118 | -5/Factory | Assimilated G-50 Soldier with FLK Orb 9140 | -5/Factory | Entered Upper Caves 9141 | -5/Upper Caves | Identified exit to Upper Caves 9200 | -5/Upper Caves | Learned location of 1 exit from Factory 9203 | -5/Upper Caves | Spotted L2-HRY(f) 9205 | -5/Upper Caves | Encountered a Master Thief 9251 | -5/Upper Caves | Entered another Upper Caves area 9251 | -5/Upper Caves | Discovered exit to Factory (range 17) 9299 | -5/Upper Caves | Learned 4 Factory zone layouts 9308 | -5/Upper Caves | Discovered new exit (range 8) 9324 | -5/Upper Caves | Identified exit to Warlord 9327 | -5/Upper Caves | Entered Warlord 9336 | -5/Warlord | System corruption cleaned by Quarantine Array 9350 | -5/Warlord | Received a Watcher feed algorithm from an ecstatic Tinkerer 9399 | -5/Warlord | Met Warlord 9401 | -5/Warlord | Opened Warlord's prototype stash 9402 | -5/Warlord | Found Prototype Device 9402 | -5/Warlord | Identified Thermal Barrier 9408 | -5/Warlord | Warlord's base attacked by MAIN.C 9409 | -5/Warlord | Found System Mapper 9418 | -5/Warlord | Found Prototype Reactor 9459 | -5/Warlord | Found Prototype Piercing Weapon 9459 | -5/Warlord | Identified Vortex Lance 9654 | -5/Warlord | Opened side exit 9674 | -5/Warlord | Discovered new exit (range 8) 9675 | -5/Warlord | Identified exit to Proximity Caves 9675 | -5/Warlord | Entered Proximity Caves 9686 | -4/Proximity Caves | Found Alien Artifact 9686 | -4/Proximity Caves | Identified Dimensional Node Initializer 9686 | -4/Proximity Caves | Initialized slip node 9750 | -4/Proximity Caves | Discovered exit to Factory (range 14) 9758 | -4/Proximity Caves | Learned Research trap positions 9760 | -4/Proximity Caves | Entered Factory 9760 | -4/Factory | Evolved 2 slots: Utility x2 9761 | -4/Factory | Identified exit to Research 9849 | -4/Factory | Repaired Imp. Cesium-ion Thruster 9921 | -4/Factory | Identified Vortex Chain Reactor 9930 | -4/Factory | Repaired Exp. Utility Shielding? 9956 | -4/Factory | Identified exit to Upper Caves 9962 | -4/Factory | Found Prototype Device 10136 | -4/Factory | Repaired Mni. Fusion Reactor 10210 | -4/Factory | Build established: Wizard-Scout 10221 | -4/Factory | Garrison activated, responded to threat 10269 | -4/Factory | Spotted B-86 Titan 10344 | -4/Factory | Discovered exit to Research (range 15) 10454 | -4/Factory | Fabricated Exp. Utility Shielding (x1) 10502 | -4/Factory | Entered Upper Caves 10542 | -4/Upper Caves | Build established: Wizard-Sprinter 10595 | -4/Upper Caves | Attracted the attention of an 0b10 checkpoint 10626 | -4/Upper Caves | Discovered new exit (range 5) 10627 | -4/Upper Caves | Identified exit to Upper Caves 10667 | -4/Upper Caves | Entered another Upper Caves area 10667 | -4/Upper Caves | Discovered exit to Research (range 10) 10709 | -4/Upper Caves | Learned location of 1 exit from Proximity Caves 10744 | -4/Upper Caves | Encountered a Warlord checkpoint 10757 | -4/Upper Caves | Discovered new exit (range 7) 10759 | -4/Upper Caves | Identified exit to Zhirov 10773 | -4/Upper Caves | Spotted ZM-VPV(f) 10776 | -4/Upper Caves | Encountered a Master Thief 10784 | -4/Upper Caves | Entered Zhirov 10784 | -4/Zhirov | Discovered new exit (range 3) 10785 | -4/Zhirov | Identified exit to Proximity Caves 10789 | -4/Zhirov | Met Zhirov 10794 | -4/Zhirov | Learned location of Testing (-3) 10794 | -4/Zhirov | Learned location of Command (-1) 10796 | -4/Zhirov | Zhirov requested help retrieving the SGEMP Prototype 10801 | -4/Zhirov | Found Alien Artifact 10801 | -4/Zhirov | Identified Integrated Dissipator 10801 | -4/Zhirov | Installed Integrated Dissipator, increased core heat dissipation (+2%) 10827 | -4/Zhirov | Found Alien Artifact 10827 | -4/Zhirov | Identified Transdimensional Reconstructor 10827 | -4/Zhirov | Warped through subspace 10854 | -4/Zhirov | Entered Proximity Caves 11098 | -3/Proximity Caves | Spotted LS-RXW(f) 11099 | -3/Proximity Caves | Spotted VR-1I9(f) 11100 | -3/Proximity Caves | Encountered a Master Thief 11100 | -3/Proximity Caves | Encountered a Master Thief 11112 | -3/Proximity Caves | Entered Research 11112 | -3/Research | Evolved 2 slots: Power x1, Propulsion x1 11113 | -3/Research | Loaded intel: 97 trap records 11256 | -3/Research | Identified exit to Armory 11256 | -3/Research | Identified exit to Testing 11402 | -3/Research | Repaired Exp. Utility Shielding 11510 | -3/Research | Identified EM Disruption Field 11520 | -3/Research | Spotted B-86 Titan 11522 | -3/Research | Spotted B-86 Titan 11529 | -3/Research | Entered Testing 11554 | -3/Testing | Spotted Striker 11571 | -3/Testing | Found Prototype Protection 11571 | -3/Testing | Identified Centrium Heavy Armor Plating 11582 | -3/Testing | Discovered new exit (range 13) 11589 | -3/Testing | Found Prototype Device 11626 | -3/Testing | Identified Exp. Focal Shield 11642 | -3/Testing | Found Prototype Ballistic Cannon 11642 | -3/Testing | Identified Omega Cannon 11669 | -3/Testing | Repaired Cld. Nuclear Pulse Thruster? 11676 | -3/Testing | Fabricated Exp. Force Field? 11679 | -3/Testing | Spotted Striker 11686 | -3/Testing | Found Portable AFG 11743 | -3/Testing | Fabricated Cld. Q-thruster? 11767 | -3/Testing | Spotted PX-V7J23J3DE1 11812 | -3/Testing | Fabricated Cld. Q-thruster? 11822 | -3/Testing | Local fabrication network quarantined 11869 | -3/Testing | Adv. Hacking Suite fried by hacking feedback 11954 | -3/Testing | Identified exit to Research 11954 | -3/Testing | Entered Research 11954 | -2/Research | Warlord forces began assault on 0b10 11954 | -2/Research | Evolved 2 slots: Propulsion x1, Utility x1 11984 | -2/Research | Identified exit to Quarantine 12000 | -2/Research | Fabricated Adv. Power Amplifier (x1) 12029 | -2/Research | Fabricated Adv. Target Analyzer (x1) 12056 | -2/Research | Central database locked down 12064 | -2/Research | Research machine network offline 12084 | -2/Research | Fabricated Cld. Q-thruster (x1) 12097 | -2/Research | Found Prototype Slashing Weapon 12097 | -2/Research | Identified Vibroblade 12150 | -2/Research | Borebot progress halted 12169 | -2/Research | Met up with Warlord 12266 | -2/Research | Entered Quarantine 12319 | -2/Quarantine | Found Alien Artifact 12320 | -2/Quarantine | Identified exit to Access 12323 | -2/Quarantine | Identified Subatomic Replicator 12334 | -2/Quarantine | Repaired Exp. Utility Shielding 12428 | -2/Quarantine | Found Alien Artifact 12452 | -2/Quarantine | Found Prototype Processor 12459 | -2/Quarantine | Found Alien Slashing Weapon 12459 | -2/Quarantine | Identified Sigix Broadsword 12466 | -2/Quarantine | Identified Core Reset Matrix 12466 | -2/Quarantine | Identified Exp. Terrain Scan Processor 12473 | -2/Quarantine | Found Transdimensional Reconstructor 12481 | -2/Quarantine | Met incapacitated Sigix Warrior 12481 | -2/Quarantine | Lockdown squad dispatched 12481 | -2/Quarantine | Acquired the access code to the Sigix quarantine chamber 12482 | -2/Quarantine | Unlocked Sigix quarantine chamber 12552 | -2/Quarantine | Spotted Fortress 12561 | -2/Quarantine | Discovered new exit (range 6) 12562 | -2/Quarantine | Identified exit to Section 7 12565 | -2/Quarantine | Entered Section 7 12570 | -2/Section 7 | Allied Derelicts emerged from ambush trap array 12579 | -2/Section 7 | Found Alien Artifact 12598 | -2/Section 7 | Found Alien Artifact 12669 | -2/Section 7 | Found Integrated Dissipator 12669 | -2/Section 7 | Installed Integrated Dissipator, increased core heat dissipation (+2%) 12684 | -2/Section 7 | Identified Integrated Reactor (x2) 12685 | -2/Section 7 | Installed Integrated Reactor, increased core energy generation (+2%) 12686 | -2/Section 7 | Installed Integrated Reactor, increased core energy generation (+2%) 12688 | -2/Section 7 | Spotted S7 Guard 12692 | -2/Section 7 | Found Alien Artifact 12695 | -2/Section 7 | Identified Integrated Singularity Reactor 12774 | -2/Section 7 | Spotted B-99 Colossus 12783 | -2/Section 7 | Found Integrated Dissipator 12783 | -2/Section 7 | Installed Integrated Dissipator, increased core heat dissipation (+2%) 12790 | -2/Section 7 | Found Alien Artifact 12793 | -2/Section 7 | Found Alien Artifact 12804 | -2/Section 7 | Assimilated C-65 Expert with FLK Orb 12804 | -2/Section 7 | Identified LRC Matter Compressor 12804 | -2/Section 7 | Identified LRC Boosters 12807 | -2/Section 7 | Found Core Expander 12809 | -2/Section 7 | Installed Core Expander, added new Utility slot 12818 | -2/Section 7 | Assimilated B-99 Colossus with FLK Orb 12830 | -2/Section 7 | Activated Sigix Exoskeleton 12830 | -2/Section 7 | Unable to understand communications from Sigix Warrior 12835 | -2/Section 7 | Installed LRC Matter Compressor, increased matter storage capacity (+125) 12843 | -2/Section 7 | Spotted Alpha 7 12889 | -2/Section 7 | Spotted Alpha 7 12904 | -2/Section 7 | Found Prototype Reactor 12915 | -2/Section 7 | Spotted Executioner 12920 | -2/Section 7 | Used Subatomic Replicator to replicate LRC Boosters 12921 | -2/Section 7 | Installed Integrated Singularity Reactor, increased core energy generation (+2%) 12922 | -2/Section 7 | Installed LRC Boosters, increased mass support (+10) 12924 | -2/Section 7 | Installed LRC Boosters, increased mass support (+10) 12930 | -2/Section 7 | Entered Access 12930 | -1/Access | Evolved 2 slots: Power x1, Utility x1 12984 | -1/Access | Identified exit to Command 13017 | -1/Access | Fabricated Exp. Armor Integrity Analyzer? 13017 | -1/Access | Spotted B-99 Colossus 13060 | -1/Access | Spotted B-99 Colossus 13180 | -1/Access | First assault squad dispatched 13184 | -1/Access | Identified Singularity Reactor 13216 | -1/Access | Build established: Generator-Sprinter 13248 | -1/Access | Garrison activated, responded to threat 13328 | -1/Access | Destroyed 18 combat bots 13330 | -1/Access | Found Spectral Analyzer 13432 | -1/Access | Garrison activated, responded to threat 13465 | -1/Access | Energy Cycler disabled 13496 | -1/Access | Spotted B-99 Colossus 13574 | -1/Access | High security lockdown imminent 13649 | -1/Access | Destroyed 11 combat bots 13654 | -1/Access | High security lockdown engaged 13752 | -1/Access | Destroyed 11 combat bots 13906 | -1/Access | Destroyed 11 combat bots 13906 | -1/Access | Spotted Executioner 13969 | -1/Access | Spotted Executioner 14024 | -1/Access | Spotted Executioner 14025 | -1/Access | Spotted Striker 14026 | -1/Access | Spotted Investigator 14027 | -1/Access | Scanned by Researcher 14030 | -1/Access | Destroyed Investigator 14042 | -1/Access | Destroyed 15 combat bots 14114 | -1/Access | Discovered new exit (range 6) 14227 | -1/Access | Spotted Executioner 14227 | -1/Access | Spotted Striker 14245 | -1/Access | Destroyed 12 combat bots 14245 | -1/Access | Destroyed Striker 14256 | -1/Access | Spotted Executioner 14256 | -1/Access | Spotted Executioner 14280 | -1/Access | Destroyed Executioner 14382 | -1/Access | Destroyed Executioner 14403 | -1/Access | Destroyed 17 combat bots 14417 | -1/Access | Local fabrication network quarantined 14430 | -1/Access | Spotted Executioner 14430 | -1/Access | Spotted Executioner 14443 | -1/Access | Found Exp. Shock Absorption System 14480 | -1/Access | Destroyed Executioner 14542 | -1/Access | Destroyed 17 combat bots 14546 | -1/Access | Spotted Executioner 14612 | -1/Access | Spotted Executioner 14612 | -1/Access | Spotted Executioner 14612 | -1/Access | Spotted Executioner 14662 | -1/Access | Destroyed Striker 14713 | -1/Access | Spotted Executioner 14720 | -1/Access | Spotted Executioner 14720 | -1/Access | Spotted Striker 14720 | -1/Access | Spotted Executioner 14720 | -1/Access | Spotted Executioner 14720 | -1/Access | Spotted Striker 14721 | -1/Access | Spotted Executioner 14721 | -1/Access | Spotted Executioner 14721 | -1/Access | Spotted Executioner 14724 | -1/Access | Spotted Executioner 14753 | -1/Access | Lost 4 parts (1p3u) 14780 | -1/Access | Spotted B-99 Colossus 14781 | -1/Access | Spotted B-99 Colossus 14789 | -1/Access | System corruption reached 10% 14793 | *** | Escaped! Last Messages --------------- 14786_ Penetrated by Slug. 14786_ Slug penetrates Wall. 14787_ Slug penetrates P-80 Master. 14787_ P-80 Master destroyed. 14789_ Slug penetrates Wall. 14790_ B-99 Colossus suffers critical hit. 14790_ Destroyed Arm. Heavy Treads. 14791_ Impulse Thruster Array destroyed. 14791_ Slug penetrates Terminal. 14791_ Slug penetrates Wall. 14791_ Penetrated by Slug. 14793_ System corrupted: Matter fused (-9). 14793_ Striker knocked back. 14793_ Penetrated by Slug. 14793_ Slug penetrates Reinforced Barrier. 14793_ Penetrated by Slug. 14793_ Exp. Shock Absorption System destroyed. 14793_ Slug penetrates Wall. 14793_ Slug penetrates Reinforced Barrier. 14793_ Slug penetrates Wall. Map ----- +----------------------------------------------------+ | "" #???# |# = #!! # #???????? | | "" #???# # # # #???????? | | "" #???# # # + #???????? | | Y" ##### %# # ########### #???????? | | "" + # #! #?????????# #???????? | | "" ##### / ] # #?????????# #???????? | | = #???# %# # #?????????# #???????? | | ] #???# =+ ######?????????# ???????? | | #???# # * #??????????????? ??????? | | +######???# ##########??????????????? ?????? | | #????????# #?##############????????? !=!????? | | #????????# #? ! #????????? !=! ???? | | /###??????# # #????????? !!! ???? | | " #??????# # #????????? ??? | | %" #??????# + #?????????### # ?? | | " #??????# # #???????????? # #? | | #?????## # #????????????### #? | | #?????#" #?##############????????????????????? | | #??????# #?????###???????????????????????????? | | #??????# ####### #####################???????? | | #??????# """T""" #???????? | | #??????# """ """ BB #???????? | | #??????# =p* BB ### #? | | ! #??????# p%!!p k #? | | #??????# p!! =%! "" #? | | ####??????# * K@" +? | | ??????????# #? | | ??????????# BB ;##+????? | | #########?# BB # ???? | | #?# #???????? | | #?# ###;#;# #####################???????? | | #?# =#?#?#?###???????????????????????????? | | #?#%=#???????????????????????????????????? | | ###!%#???????????????????????????????????? | | #%*#???????????????????????????????????? | | # !#???????????????????????????????????? | | #% #???????????????????????????????????? | | #/# # #???????????????????????????????????? | | # #???????????????????????????????????? | | # #???????????????????????????????????? | | # #????????????????????????????????#### | | # #????????????????????????????????# | | # *#????????????????????????????????# | | ##=%#???#######??????????????????????# ! | | ##*[#?? ! #???????????????######## | | ## ##? #???????????????# #### | | ####/#/### # ""#???????????????# #??? | | "T # ""#???????????????# #??? | | % "" + T"#???????????????# #??? | | ######/### # ""#???????????????# #??? | +----------------------------------------------------+ Best States ------------- Heat Dissipation 112 Energy Generation 136 Energy Capacity 1100 Matter Stores 450 Matter Capacity 450 Sight Range 24 Robot Scan Range 30 Terrain Scan Density 10 Power Amplification 30 Armor Coverage 450 Resistance: KI 30 Resistance: TH 50 Resistance: EX 75 Utility Shielding 90 Weapon Shielding 100 Weapon Cycling 25 Phase Shifting 15 Evasion (%) 96 Targeting Accuracy 24 Melee Accuracy 6 Target Analysis 8 Core Analysis 10 Armor Integrity Analysis 90 Recoil Reduction 4 Matter Filtering 50 Offensive Hacking 72 Defensive Hacking 38 Item Schematics ----------------- Imp. Cesium-ion Thruster | -7/Factory | Scanalyzed Hacking Suite | -7/Lower Caves | Hacked Mak. Hacking Suite | -6/Factory | Scanalyzed Adv. Armor Integrity Analyzer | -6/Factory | Hacked Imp. Hacking Suite | -6/Factory | Hacked Combat Drone Bay | -6/Data Miner | Free Lgt. Regenerative Plating | -6/Data Miner | Free Cmb. Gravmag System | -6/Data Miner | Free Triangulator | -6/Data Miner | Free Exp. Targeting Computer | -6/Data Miner | Free Exp. Transmission Jammer | -6/Data Miner | Free Cloaking Device | -6/Data Miner | Free Mni. Smartbomb Launcher | -6/Data Miner | Free Kinetic Spear | -6/Data Miner | Free Exp. Sensor Array | -5/Factory | Hacked Exp. Utility Shielding | -5/Factory | Hacked Adv. System Shield | -5/Factory | Hacked Adv. Hacking Suite | -5/Factory | Hacked Exp. Propulsion Shielding | -5/Factory | Hacked Adv. Target Analyzer | -5/Factory | Hacked Adv. Reaction Control System | -5/Factory | Scanalyzed Adv. Phase Shifter | -5/Factory | Scanalyzed Gravity Neutralizing Apparatus | -5/Factory | Scanalyzed Nuclear Pulse Array | -5/Factory | Scanalyzed Exp. Weapon Shielding | -5/Factory | Hacked Impulse Thruster Array | -5/Factory | Scanalyzed Cld. Nuclear Pulse Thruster | -5/Factory | Hacked Vortex Chain Reactor | -4/Factory | Scanalyzed Adv. Weapon Cycler | -4/Factory | Hacked Adv. Core Analyzer | -4/Factory | Hacked Adv. Force Field | -4/Factory | Hacked Adv. Power Amplifier | -4/Factory | Hacked Assault Drone Bay | -4/Zhirov | Free Exp. Heat Sink | -4/Zhirov | Free Exp. Optical Array | -4/Zhirov | Free Imp. Arc Thrower | -4/Zhirov | Free Lgt. Quantum Reactor | -3/Research | Hacked Cld. Q-thruster | -3/Research | Downloaded Exp. Weapon Cycler | -2/Research | Hacked Exp. Core Analyzer | -2/Quarantine | Hacked Exp. Armor Integrity Analyzer | -2/Quarantine | Hacked Robot Schematics ------------------ None Fabricated ------------ Imp. Hacking Suite | x1 | -6/Factory Imp. Hacking Suite | x1 | -6/Factory Imp. Hacking Suite | x1 | -6/Factory Adv. System Shield | x1 | -5/Factory Exp. Sensor Array | x1 | -5/Factory Exp. Utility Shielding | x1 | -5/Factory Exp. Targeting Computer | x1 | -5/Factory Adv. Hacking Suite | x1 | -5/Factory Exp. Targeting Computer | x1 | -5/Factory Impulse Thruster Array | x1 | -5/Factory Impulse Thruster Array | x1 | -5/Factory Exp. Utility Shielding | x1 | -4/Factory Exp. Force Field | x1 | -3/Testing | Preloaded Cld. Q-thruster | x1 | -3/Testing Cld. Q-thruster | x1 | -3/Testing Adv. Power Amplifier | x1 | -2/Research Adv. Target Analyzer | x1 | -2/Research Cld. Q-thruster | x1 | -2/Research Exp. Armor Integrity Analyzer | x1 | -1/Access Alien Tech Used ----------------- Dimensional Node Initializer Integrated Dissipator Transdimensional Reconstructor Sigix Broadsword Integrated Reactor Core Expander LRC Matter Compressor Subatomic Replicator Integrated Singularity Reactor LRC Boosters Achievements -------------- Watch This! Challenges ------------ None Game ------ Seed FlightChargeBarrier Manual? 0 Play Time 06:41:33 Cumulative 660.0 hours Start 2020.01.28 @ 20:00:03 End 2020.01.29 @ 18:59:58 Sessions 11 Manual Loads 0 Difficulty Rogue Special Mode None Game No. 421 Rogue 421 Adventurer 0 Explorer 0 Win Type 0 Total 104 Types 70/6/8/10/5/1/4 Lore% 97 Gallery% 95 Achievement% 80 Wizard Run 0 Options --------- ASCII 0 Keyboard 0 Movement Numpad Keybinds 0 Fullscreen 2 Font 18/SmallcapsGlow Map View 76x50 Tactical HUD 1 Map Filters NONE Filters NONE Steam 1 RUN: 3cad4dad-60f8-4afb-b0c0-259f4de5be7e